Cogmind - Beta 13 @@@ ROGUE MODE // 2024.05.21 @ 14:52:41 Player: Dosh Result: Destroyed by S-43 Plague with Heavy Machine Gun Performance ------------- Evolutions (9) 4500 Regions Visited (37) 7400 Robots Destroyed (428) 2140 Value Destroyed (19455) 19455 Prototype IDs (112) 2240 Alien Tech Used (5) 1000 Bonus (40909) 40909 TOTAL SCORE: 77644 Bonus ------- High Alert Combat Kills 895 Follower Combat Kills 21224 Entered Garrisons 2200 Used RIF Installer 5500 Network Hubs Disabled 200 Aligned with FarCom 300 Built Enhanced Grunts 300 A7 Reached Mainframe 300 Met R17 at Cetus 500 Met R17 at Research 2000 Destroyed MAIN.C Guards 500 Met MAIN.C 5000 Hacked MAIN.C 300 Destroyed MAIN.C Shell 5000 Friendly Fire -3310 Cogmind --------- Core Integrity 0/1600 Matter 84/300 Energy 71/100 System Corruption 21% Temperature Cool (0) Movement Core (50) Location -1/Command Parts ------- > --- POWER (2) -------- (None) > --- PROPULSION (4) --- Enhanced Armored Heavy Treads Experimental Biometal Medium Treads > --- UTILITY (16) ----- Advanced Coolant Injector Experimental Targeting Computer Microactuators Relay Coupler [NC] (36) Relay Coupler [Grunt] (4) > --- WEAPON (3) ------- (None) > --- INVENTORY (5) ---- Quantum Reactor Wheel Centrium Wheel Peak State ------------ > --- POWER ------------ Quantum Reactor Quantum Reactor > --- PROPULSION ------- Wheel Centrium Wheel Centrium Wheel Centrium Wheel > --- UTILITY ---------- Experimental Power Amplifier Advanced Cooling System Cargo Storage Unit Experimental Targeting Computer SHELL Armor Phase Armor Advanced Remote Shield Relay Coupler [NC] Relay Coupler [Grunt] Relay Coupler [Sentry] Relay Coupler [Hunter] Relay Coupler [Proto] > --- WEAPON ----------- Advanced Remote Datajack Core Stripper > --- INVENTORY -------- Quantum Reactor Light Quantum Reactor Wheel Wheel Advanced Energy Well Experimental EM Disruption Field Hacking Suite Relay Coupler [Duelist] Relay Coupler [Sentry] Relay Coupler [Demolisher] Core Reset Matrix Microwarp Drive HERF Cannon Enhanced Nova Cannon Micro-nuke Launcher Sigix Terminator Advanced Datajack Advanced Remote Datajack [Rating: 204] Favorites ----------- Power Quantum Reactor Engine Reinforced Deuterium Engine Power Core Neutrino Core Reactor Quantum Reactor Propulsion Centrium Wheel Treads Light Treads Leg Potential Leg Wheel Centrium Wheel Utility Relay Coupler [NC] Device Sensor Drone Bay Storage Cargo Storage Unit Processor Enhanced Optical Array Hackware Relay Coupler [NC] Protection SHELL Armor Artifact Phase Armor Weapon Cooled Particle Cannon Energy Gun Heavy EM Shotgun Energy Cannon Cooled Particle Cannon Ballistic Gun Assault Rifle Ballistic Cannon Heavy Mass Driver Launcher Micro-nuke Launcher Special Weapon Advanced Remote Datajack Impact Weapon Makeshift Hammer Slashing Weapon Greatsword Special Melee Weapon Improved Datajack Build | -11 -10 -10 -10 -9 -8 -8 -8 -8 -8 -8 -8 -8 -7 -7 -6 -6 -6 -6 -6 -6 -6 -5 -5 -5 -5 -4 -4 -3 -3 -3 -2 -2 -2 -2 -2 -1 -1 ------- Run | Yrd Mat Min Exi Min Mat Gar Mat Gar Mat Gar Mat Gar Fac Gar Fac Gar Fac Ext Cet Arc Hub Fac Gar Fac Gar Fac Gar Res Tes Gar Res Gar Res Qua Sec Acc Com Slots Evolved 18 | . . . . . 4 . . . . . . . 2 . 2 . . . . . . 2 . . . 2 . 2 . . 2 . . . . 2 . Power 1 | . . . . . . . . . . . . . . . . . . . . . . 1 . . . . . . . . . . . . . . . Propulsion 2 | . . . . . . . . . . . . . . . 1 . . . . . . . . . . . . . . . . . . . . 1 . Utility 14 | . . . . . 4 . . . . . . . 2 . . . . . . . . 1 . . . 2 . 2 . . 2 . . . . 1 . Weapon 1 | . . . . . . . . . . . . . . . 1 . . . . . . . . . . . . . . . . . . . . . . Parts Attached 740 | 6 6 4 5 2 24 16 18 10 22 6 14 10 30 33 41 14 24 23 4 5 34 14 27 26 16 20 25 11 25 18 13 31 46 18 31 29 39 Power 36 | 1 . 1 . . 2 . . . 1 . . . . 2 2 1 . 1 . . 1 2 1 . 2 . . . 1 1 . 8 5 . 1 1 2 Engine 9 | 1 . 1 . . 1 . . . 1 . . . . 1 2 1 . . . . . 1 . . . . . . . . . . . . . . . Core 3 | . . . . . 1 . . . . . . . . . . . . 1 . . . . . . . . . . . . . 1 . . . . . Reactor 24 | . . . . . . . . . . . . . . 1 . . . . . . 1 1 1 . 2 . . . 1 1 . 7 5 . 1 1 2 Propulsion 67 | 2 . 1 2 . . . . . 2 . . 2 1 2 8 . 4 4 2 . 9 . . 3 1 3 . . 1 . . 1 2 2 4 8 3 Treads 5 | 2 . 1 . . . . . . . . . . . . . . . . . . . . . . . . . . . . . . . . . . 2 Leg 5 | . . . 2 . . . . . 2 . . . . 1 . . . . . . . . . . . . . . . . . . . . . . . Wheel 57 | . . . . . . . . . . . . 2 1 1 8 . 4 4 2 . 9 . . 3 1 3 . . 1 . . 1 2 2 4 8 1 Hover . | . . . . . . . . . . . . . . . . . . . . . . . . . . . . . . . . . . . . . . Flight . | . . . . . . . . . . . . . . . . . . . . . . . . . . . . . . . . . . . . . . Utility 328 | 1 2 . 2 2 10 5 5 3 8 5 7 1 19 11 22 7 11 9 1 1 14 5 13 13 7 11 13 9 12 9 9 10 26 8 6 14 17 Device 111 | . 1 . . 1 2 3 . . 2 1 1 1 10 2 6 1 4 2 . 1 7 3 2 4 . . 1 4 6 3 4 2 16 5 4 5 7 Storage 9 | 1 1 . 2 . 1 . . . . . . . 1 . . . . . . . . . . . . . . . . . . 2 1 . . . . Processor 10 | . . . . . 2 . . . . . . . . . . . . 1 . . 1 . . 1 . . . 3 . . . . . 1 . . 1 Hackware 136 | . . . . . 1 1 2 3 1 3 3 . 3 7 10 5 6 4 . . 3 1 9 3 6 8 10 2 5 6 4 6 9 2 2 8 3 Protection 56 | . . . . 1 4 1 3 . 5 1 3 . 5 2 6 1 1 2 1 . 3 1 2 5 1 3 2 . 1 . 1 . . . . . 1 Artifact 6 | . . . . . . . . . . . . . . . . . . . . . . . . . . . . . . . . . . . . 1 5 Weapon 309 | 2 4 2 1 . 12 11 13 7 11 1 7 7 10 18 9 6 9 9 1 4 10 7 13 10 6 6 12 2 11 8 4 12 13 8 20 6 17 Energy Gun 7 | 1 . . . . 4 1 . . . . . . . . . . . . . . . . . . . . . . 1 . . . . . . . . Energy Cannon 79 | . . . . . . . . . 4 . 4 4 4 9 5 . 5 4 1 3 2 3 3 2 . 1 2 . 1 . . 2 5 1 7 4 3 Ballistic Gun 18 | 1 2 . . . 1 1 2 1 3 . . . . . . . 1 . . . . . . 1 . . . . . . . 2 1 . . . 2 Ballistic Cannon 33 | . 1 . 1 . 5 4 5 1 1 . . . . . . . . . . . 4 1 1 . . . . . 2 . . . . 3 1 . 3 Launcher 18 | . . 1 . . . 2 2 . . . . 2 . . . . 1 . . . . . . . . . . . 1 . 1 . 1 1 3 . 3 Special Weapon 118 | . . . . . . . . . . . . . 1 9 4 6 2 5 . 1 3 2 9 7 6 5 10 2 6 8 3 8 6 3 8 2 2 Impact Weapon 12 | . . 1 . . 2 2 1 3 . . . . 1 . . . . . . . . . . . . . . . . . . . . . 1 . 1 Slashing Weapon 2 | . . . . . . . . . . . . . . . . . . . . . . . . . . . . . . . . . . . . . 2 Piercing Weapon . | . . . . . . . . . . . . . . . . . . . . . . . . . . . . . . . . . . . . . . Special Melee Weapon 22 | . 1 . . . . 1 3 2 3 1 3 1 4 . . . . . . . 1 1 . . . . . . . . . . . . . . 1 Unidentified Prototypes 21 | . . . . 1 1 . . . 1 . . . . . 1 . 2 . 1 . . . . 2 . . . . 7 . . . . . 1 . 4 Corrupted Parts 2 | . . 1 1 . . . . . . . . . . . . . . . . . . . . . . . . . . . . . . . . . . System Corruption 5 | . . 2 3 . . . . . . . . . . . . . . . . . . . . . . . . . . . . . . . . . . Parts Lost 97 | . . 2 . . 4 4 2 1 3 . 1 . 1 4 4 . 8 3 1 1 6 . 1 2 1 . . . . 3 1 7 3 5 7 3 19 Power 14 | . . 1 . . 1 . . . 1 . . . . . 1 . . . . . . . . . . . . . . 1 . 4 1 . 1 . 3 Propulsion 30 | . . 1 . . . . . . . . . . . 2 3 . 3 2 1 . 4 . . 2 1 . . . . . . 1 . 3 2 3 2 Utility 36 | . . . . . 2 3 . 1 2 . 1 . 1 2 . . 3 1 . . 2 . 1 . . . . . . 2 1 1 1 1 2 . 9 Weapon 17 | . . . . . 1 1 2 . . . . . . . . . 2 . . 1 . . . . . . . . . . . 1 1 1 2 . 5 Highest Loss Streak 9 | . . 2 . . 3 3 1 1 1 . 1 . 1 1 2 . 4 2 1 1 2 . 1 2 1 . . . . 3 1 4 1 2 4 1 9 To Critical Strikes 1 | . . . . . . . 1 . . . . . . . . . . . . . . . . . . . . . . . . . . . . . . Average Slot Usage (%) 87 | . 88 99 76 92 91 88 99 97 97 89 89 89 89 89 89 93 90 91 91 92 88 94 92 86 85 87 85 90 89 87 82 81 84 77 79 79 77 Engine 3 | . 14 13 14 14 4 9 9 9 9 9 9 9 7 6 1 6 6 4 . . . . 5 5 3 . . . . . . . . . . . . Reactor 4 | . . . . . . . . . . . . . . . 3 . . . . . 4 10 4 5 6 10 10 9 8 7 8 7 8 8 8 8 7 Treads 1 | . 28 27 21 . . . . . . . . . . . . . . . . . . . . . . . . . . . . . . . . . . Leg 3 | . . . 6 28 18 18 18 18 17 18 18 5 . . 1 . . . . . . . . . . . . . . . . . . . . . . Wheel 11 | . . . . . . . . . . . . 12 15 13 16 20 19 19 18 20 17 17 17 16 14 15 15 14 14 14 13 12 12 9 12 14 14 Device 6 | . 3 14 4 . 6 9 12 6 12 8 3 7 11 8 4 2 12 8 . 4 7 15 5 6 5 5 5 13 6 8 3 6 7 3 4 2 9 Storage 6 | . 14 14 14 14 9 9 9 9 9 9 9 9 7 7 6 6 6 6 6 6 6 5 5 5 5 5 5 4 4 4 4 4 4 4 4 4 3 Processor 4 | . . . . . 11 9 9 1 . . . . . . . . . 3 6 6 7 5 5 5 5 5 5 9 9 9 8 4 4 7 4 4 4 Hackware 21 | . . . . . 8 7 14 26 24 10 16 10 7 23 25 20 22 20 26 26 14 14 23 23 27 31 27 28 33 33 30 29 30 30 31 28 20 Protection 6 | . . . . 7 11 8 9 9 5 16 16 18 23 12 7 16 2 4 5 1 6 3 3 2 . 3 5 . 1 . 4 4 4 4 4 4 3 Energy Cannon 6 | . . . . . . . . . 14 16 15 16 13 10 13 13 11 17 16 19 13 15 10 . . . . . . . . 2 4 . 1 6 2 Ballistic Gun 1 | . 12 10 . . 3 1 4 5 1 . . . . . . . 2 . . . . . . . . . . . . . . 2 2 . . . 3 Ballistic Cannon 2 | . 13 14 . 14 5 9 8 4 . . . . . . . . . . . . 4 . . 5 5 5 5 4 3 4 4 . . 4 2 . . Special Weapon 2 | . . . . . . . . . . . . . . 3 5 6 3 2 3 . . . 4 4 5 4 4 4 3 4 3 4 3 2 2 4 1 Naked Turns . | . . . . . . . . . . . . . . . . . . . . . . . . . . . . . . . . . . . . . . Heaviest Build 294 | 11 29 30 32 35 116 117 107 101 126 126 128 128 197 182 198 195 196 196 184 186 199 224 215 217 212 221 247 234 230 227 252 256 265 267 270 289 294 Greatest Support 120 | 40 40 40 60 60 60 60 60 60 60 60 60 60 32 32 48 36 42 48 48 42 42 42 42 42 36 48 48 48 52 52 52 52 52 52 42 58 120 Greatest Overweight (x) 26 | . . 1 . . 1 1 1 1 3 2 2 3 7 11 12 5 11 7 5 4 11 5 5 8 7 6 5 4 4 4 4 6 5 10 10 26 6 Average Overweight (x) 3 | . . . . . . 1 1 1 1 1 1 2 5 6 5 4 5 4 3 4 5 4 4 4 5 4 4 4 3 3 4 4 4 8 6 5 3 Largest Inventory Capacity 30 | 8 15 15 15 15 25 25 25 25 25 25 25 25 30 30 30 30 30 30 30 30 30 30 30 30 30 30 30 30 30 30 30 30 30 30 30 30 30 Average Capacity 27 | 6 13 15 15 15 19 25 25 25 25 25 25 25 28 30 30 30 30 30 30 30 30 30 30 30 30 30 30 30 30 30 30 30 30 30 30 30 27 Most Carried 30 | 3 15 15 15 15 20 25 18 22 25 25 25 25 27 30 30 30 30 30 30 30 30 30 30 30 30 30 30 30 30 30 30 30 30 30 30 30 30 Average Carried 25 | 1 9 14 14 14 16 20 17 20 22 24 22 24 24 27 27 28 27 28 29 29 27 27 28 28 28 27 29 28 29 29 26 27 27 28 27 28 23 Final Capacity 30 | 8 15 15 15 15 25 25 25 25 25 25 25 25 30 30 30 30 30 30 30 30 30 30 30 30 30 30 30 30 30 30 30 30 30 30 30 30 5 Final Carried 30 | 3 14 13 14 13 20 19 18 20 25 24 23 25 27 30 21 30 30 30 29 30 27 29 30 29 30 29 29 29 30 30 24 30 27 28 27 27 3 Class Distribution -------------------- 44% | Botlord-Tank 15% | Botlord-Mutant 11% | Bothacker-Mutant 10% | Mutant 9% | Botlord-Gunner 7% | Botlord-Skirmisher Dominant Class ---------------- Mutant | -10/Materials Mutant | -10/Mines Mutant | -10/Exiles Mutant | -9/Mines Mutant | -8/Materials Mutant | -8/Garrison Bothacker-Mutant | -8/Materials Bothacker-Mutant | -8/Garrison Bothacker-Mutant | -8/Materials Bothacker-Mutant | -8/Garrison Bothacker-Mutant | -8/Materials Botlord-Mutant | -8/Garrison Botlord-Mutant | -7/Factory Botlord-Mutant | -7/Garrison Botlord-Tank | -6/Factory Botlord-Tank | -6/Garrison Botlord-Gunner | -6/Factory Botlord-Tank | -6/Extension Botlord-Tank | -6/Cetus Botlord-Skirmisher | -6/Archives Botlord-Tank | -6/Hub_04(d) Botlord-Tank | -5/Factory Botlord-Tank | -5/Garrison Botlord-Tank | -5/Factory Botlord-Tank | -5/Garrison Botlord-Tank | -4/Factory Botlord-Tank | -4/Garrison Botlord-Skirmisher | -3/Research Botlord-Tank | -3/Testing Botlord-Tank | -3/Garrison Botlord-Skirmisher | -2/Research Botlord-Tank | -2/Garrison Botlord-Skirmisher | -2/Research Botlord-Gunner | -2/Quarantine Botlord-Gunner | -2/Section 7 Botlord-Tank | -1/Access Botlord-Tank | -1/Command Resources | -11 -10 -10 -10 -9 -8 -8 -8 -8 -8 -8 -8 -8 -7 -7 -6 -6 -6 -6 -6 -6 -6 -5 -5 -5 -5 -4 -4 -3 -3 -3 -2 -2 -2 -2 -2 -1 -1 ----------- Run | Yrd Mat Min Exi Min Mat Gar Mat Gar Mat Gar Mat Gar Fac Gar Fac Gar Fac Ext Cet Arc Hub Fac Gar Fac Gar Fac Gar Res Tes Gar Res Gar Res Qua Sec Acc Com Matter Collected 18342 | 171 359 40 45 51 648 618 482 242 285 70 140 282 245 495 640 245 225 462 75 45 829 54 478 757 589 803 769 236 699 969 348 1104 1186 1147 1192 598 719 Remotely . | . . . . . . . . . . . . . . . . . . . . . . . . . . . . . . . . . . . . . . Salvage Created 18662 | . 402 25 . . 1217 691 457 175 895 423 851 393 815 950 1328 260 353 318 . 283 1072 57 139 401 49 352 384 46 100 121 118 308 853 532 1028 1064 2202 Parts 908 | . 33 . . . 77 39 33 3 58 25 35 37 42 41 51 10 13 5 . 17 59 1 16 21 4 24 20 1 7 3 2 9 25 26 33 72 66 Haulers Intercepted 13 | . 2 . . . 4 . 3 . 3 . 1 . . . . . . . . . . . . . . . . . . . . . . . . . . Recyclers Shooed 14 | . 2 . . . . . 4 . . . . . . . 2 . 2 1 . . . . . . . . . . . . . . . 1 1 . 1 Parts Field Recycled . | . . . . . . . . . . . . . . . . . . . . . . . . . . . . . . . . . . . . . . Retrieved Matter . | . . . . . . . . . . . . . . . . . . . . . . . . . . . . . . . . . . . . . . Parts Self-Destructed . | . . . . . . . . . . . . . . . . . . . . . . . . . . . . . . . . . . . . . . Prevented . | . . . . . . . . . . . . . . . . . . . . . . . . . . . . . . . . . . . . . . Kills | -11 -10 -10 -10 -9 -8 -8 -8 -8 -8 -8 -8 -8 -7 -7 -6 -6 -6 -6 -6 -6 -6 -5 -5 -5 -5 -4 -4 -3 -3 -3 -2 -2 -2 -2 -2 -1 -1 ------- Run | Yrd Mat Min Exi Min Mat Gar Mat Gar Mat Gar Mat Gar Fac Gar Fac Gar Fac Ext Cet Arc Hub Fac Gar Fac Gar Fac Gar Res Tes Gar Res Gar Res Qua Sec Acc Com Combat Hostiles Destroyed 314 | . 9 14 . . 22 26 11 6 12 12 14 26 12 18 13 5 3 1 . . 11 1 4 7 1 6 9 1 2 5 1 7 15 10 16 7 7 Melee 4 | . . 1 . . . . . 1 . . . . . . . . . . . . . . . . . . . . . . . . 1 . . . 1 Guns 27 | . 4 . . . 9 8 1 1 . . . . . . . . . . . . . . . . . . . . . . . 1 2 . . . 1 Cannons 189 | . 5 . . . 8 8 7 2 12 12 14 5 10 14 12 5 3 1 . . 11 1 3 7 1 6 9 1 2 5 1 1 2 6 8 4 3 AOE 79 | . . 13 . . 4 10 3 . . . . 21 . . 1 . . . . . . . . . . . . . . . . 5 10 2 8 . 2 Classes Destroyed 24 | . 6 1 . . 3 4 1 . . . . . . 2 . . . 1 . . 2 . 1 . . . . 1 . . . 1 . 1 . . . Worker 24 | . . . . . . . 1 . . . . . 1 . 7 . 1 . . . 10 . . . . . . . . . . . 1 1 1 1 . Builder 32 | . . . . . 2 . . . 1 . . . 1 . 2 . 1 . . . 7 . . . . . . . . . . . 1 1 3 13 . Tunneler 4 | . . . . . . . . . . . . . . . . . . . . . 2 . . 1 . . . . . . . . . . . 1 . Hauler 13 | . 2 . . . 4 . 3 . 3 . 1 . . . . . . . . . . . . . . . . . . . . . . . . . . Recycler 20 | . 2 . . . 1 . 1 . 1 . . . 2 . 4 . 1 2 . . 1 . . . . . . . . . . . 1 . 2 1 1 Operator 9 | . 1 . . . . . . . . . . . . . . . . . . 8 . . . . . . . . . . . . . . . . . Watcher 17 | . 3 . . . 5 . . . 1 . 2 1 1 . . . 1 . . . . . . . . . . . . . . . 1 1 . . 1 Swarmer 67 | . 6 . . . 9 10 6 2 3 5 . 18 . 4 . . . . . . . . 1 . . . 2 . . . . . . . . . 1 Cutter 6 | . . . . . . . . . . . . . . . . . . . . . . . 4 . . . 2 . . . . . . . . . . Saboteur 1 | . . . . . . . . . . . . . . . . . . . . . . . . . . . . . . . . 1 . . . . . Grunt 83 | . 3 . . . 8 5 3 2 4 1 12 3 7 6 4 3 . . . . 2 1 . 1 . 2 3 . . 2 1 1 3 . 5 1 . Brawler 6 | . . . . . . . . . . . . . . 1 . 1 . . . . . . . . . . 1 . . . 1 1 1 . . . . Duelist 9 | . . . . . 1 3 . . . 2 . 1 . . 1 . . . . . . . . . . . . . . 1 . . . . . . . Protector 1 | . . . . . . 1 . . . . . . . . . . . . . . . . . . . . . . . . . . . . . . . Researcher 1 | . . . . . . . . . . . . . . . . . . . . . . . . . . . . . . . . . . 1 . . . Sentry 42 | . . . . . 4 2 3 1 6 3 1 4 2 7 4 . . . . . 3 . . . . . . . . . . . . . . 1 1 Demolisher 2 | . . . . . . 1 . . . . . . . . 1 . . . . . . . . . . . . . . . . . . . . . . Specialist 7 | . . . . . . . . . . . . . . 1 . . . . . . 1 . . 1 . . . . . . . . . 3 1 . . Hunter 32 | . . . . . . 1 . 1 . 1 1 . . . . . 2 . . . 3 . . 1 1 . . . 1 . . 3 4 3 4 4 2 Programmer 44 | . . . . . . 3 . . . . . . 3 . 3 1 1 . . . 2 . . 4 . 2 1 . 1 2 . 1 6 4 5 2 3 Heavy 3 | . . . . . . . . . . . . . . . . . . . . . 1 . . . . 2 . . . . . . . . . . . Behemoth 2 | . . . . . . . . . . . . . . . . . . 1 . . . . . . . . . . . . . . 1 . . . . S7 Guard 1 | . . . . . . . . . . . . . . . . . . . . . . . . . . . . . . . . . . . 1 . . Striker 1 | . . . . . . . . . . . . . . . . . . . . . . . . . . . . 1 . . . . . . . . . Assembled 14 | . . 14 . . . . . . . . . . . . . . . . . . . . . . . . . . . . . . . . . . . Savage 1 | . . . . . . . . . . . . . . . . . . . . . . . . . . . 1 . . . . . . . . . . Best Kill Streak 18 | . 5 13 . . 6 8 4 3 3 5 4 18 3 5 7 3 3 1 . 3 9 1 2 3 1 3 2 1 1 1 1 2 9 3 5 2 5 Combat Bots Only 18 | . 3 13 . . 4 8 3 3 3 5 4 18 3 5 3 3 3 1 . . 3 1 2 3 1 3 2 1 1 1 1 2 7 3 4 1 4 Max Kills in Single Turn 5 | . 1 3 . . 3 3 3 1 1 1 1 5 1 1 5 1 1 1 . 1 2 1 1 1 1 1 2 1 1 1 1 2 3 1 2 1 2 Gunslinging . | . . . . . . . . . . . . . . . . . . . . . . . . . . . . . . . . . . . . . . Exploded 5 | . . 3 . . 2 3 3 . . . . 5 . . 1 . . . . . . . . . . . . . . . . 2 3 1 2 . 1 Melee 1 | . . 1 . . . . . 1 . . . . . . . . . . . . . . . . . . . . . . . . 1 . . . 1 Uniques/NPCs Destroyed 1 | . . . . . . . . . . . . . . . . . . . . . . . . . . . . . . . . . . . . . 1 MAIN.C Shell (-1/Command) Combat | -11 -10 -10 -10 -9 -8 -8 -8 -8 -8 -8 -8 -8 -7 -7 -6 -6 -6 -6 -6 -6 -6 -5 -5 -5 -5 -4 -4 -3 -3 -3 -2 -2 -2 -2 -2 -1 -1 -------- Run | Yrd Mat Min Exi Min Mat Gar Mat Gar Mat Gar Mat Gar Fac Gar Fac Gar Fac Ext Cet Arc Hub Fac Gar Fac Gar Fac Gar Res Tes Gar Res Gar Res Qua Sec Acc Com Hostile Shots Fired 2757 | . 48 26 . . 97 111 47 48 27 36 61 20 110 182 118 30 71 30 1 1 96 24 38 21 11 30 38 . 26 21 45 170 148 320 227 95 383 Missed 843 | . 11 9 . . 19 23 16 12 6 12 15 7 47 54 47 7 19 6 1 . 37 7 16 7 4 10 8 . 8 7 11 50 43 133 58 30 103 Damage Taken 35267 | . 319 256 . . 1110 1354 429 398 240 286 606 106 624 1262 861 390 967 321 53 63 897 146 291 230 81 262 560 87 241 393 1020 2997 2695 2588 3424 1401 8309 Core 4145 | . 82 34 . . 155 65 49 98 59 9 81 . 69 96 106 43 88 69 3 . 114 . 55 32 7 45 78 . 39 18 87 258 198 209 297 243 1359 Absorbed by Shields 4279 | . . . . . . 201 164 94 44 . . 2 . . . . . 46 22 . . 155 283 121 50 249 342 32 165 59 80 288 283 242 . 143 1214 Redirected to Core 796 | . . . . . . . . . . . . . . . . . . . . . . . . . . . . . . . . . . . . 228 568 Redirected to Shielding 142 | . . . . . . . . . . 4 . . 51 . 10 39 . 38 . . . . . . . . . . . . . . . . . . . Ignored by Resistances 929 | . . . . . . . . . . . 58 18 37 97 13 . . . . . . . . . . . . . . . . . . . 706 . . Regen/Repaired (Parts) 12274 | . . . . . 182 . . . . . . . 110 482 229 144 74 . . . . 474 99 60 . 11 108 31 . . 231 2007 1462 1363 3142 486 1579 Core Remaining (%) 65 | 100 . . . 53 . . . . . . . 6 . 76 . . . . . . 50 . . . 90 . 89 . . 95 . . . . 27 . . Volleys Fired 2013 | . 49 8 . . 73 61 36 19 55 43 43 34 57 89 98 60 63 28 5 54 79 7 35 53 29 82 60 14 44 54 45 56 89 81 124 144 142 Largest 3 | . 2 2 . . 2 2 2 2 2 2 2 2 2 2 3 2 3 3 3 3 3 3 2 2 2 1 2 1 1 2 2 2 2 2 2 2 3 Hottest 320 | . 60 71 . . 94 94 88 64 104 180 60 180 180 180 210 105 220 220 165 165 178 220 120 175 95 120 195 75 100 120 120 200 320 177 203 240 240 Shots Fired 2834 | . 92 10 1 1 138 116 60 37 105 70 82 52 105 144 154 83 84 47 8 60 181 15 45 56 32 82 63 14 44 59 46 67 105 86 125 162 203 Gun 333 | . 46 . . . 98 37 9 19 25 . . . . . . . . . . . . . . . . . . . . . . 17 20 . . . 62 Cannon 1871 | . 46 2 1 1 40 76 50 18 80 70 82 38 102 122 110 61 63 33 7 58 172 13 22 27 17 38 41 7 13 25 6 12 33 63 77 116 129 Launcher 66 | . . 8 . . . 3 1 . . . . 14 . . . . . . . . . . . . . . . . . . 1 . 7 5 23 . 4 Special 564 | . . . . . . . . . . . . . 3 22 44 22 21 14 1 2 9 2 23 29 15 44 22 7 31 34 39 38 45 18 25 46 8 Kinetic 787 | . 90 2 1 1 91 81 59 37 28 . . . . . . . . . . . 49 . . 25 17 30 30 7 13 25 6 17 20 52 19 . 87 Thermal 1313 | . . . . . . . . . 77 70 82 38 102 130 110 62 63 33 7 58 123 13 22 2 2 8 11 . . 5 1 12 33 8 58 86 97 Explosive 66 | . . 8 . . . 3 1 . . . . 14 . . . . . . . . . . . . . . . . . . 1 . 7 5 23 . 4 Electromagnetic 129 | . 2 . . . 47 32 . . . . . . . . . . . . . . . . . . . . . . . . . . . 11 . 30 7 Robot Hit Streak 50 | . 4 3 . . 10 11 6 4 7 9 12 7 12 12 10 5 8 9 4 5 16 4 8 8 5 8 19 2 9 16 4 11 7 12 18 13 50 Robot Miss Streak 13 | . 7 1 . . 13 7 5 4 5 3 5 2 3 3 4 4 2 4 4 7 5 2 2 3 4 3 2 2 3 4 3 5 2 7 4 4 3 Penetration Max 1 | . . . . . . . . . . . . . . . . . . . . . . . . . . . 1 . . . . . 1 . . . 1 Secondary Targets . | . . . . . . . . . . . . . . . . . . . . . . . . . . . . . . . . . . . . . . Shots Hit Robots 1725 | . 41 2 . . 100 76 43 27 59 36 50 17 61 80 93 32 48 30 4 30 107 13 22 35 12 46 40 7 28 32 24 41 66 41 74 89 219 Core Hits 732 | . 20 25 . . 63 66 32 8 22 12 25 36 20 26 32 7 8 10 3 17 53 3 4 8 1 9 9 1 2 2 5 6 40 17 53 19 68 Critical Kills 7 | . . . . . . . . . . . . . . 1 . . 1 . . 2 . . 1 . . . . . . . . . . . . 2 . Critical Parts Destroyed . | . . . . . . . . . . . . . . . . . . . . . . . . . . . . . . . . . . . . . . Critical Strikes 24 | . . . . . . . 1 . . . . . . 1 . . 1 . . 2 1 . 1 . 1 2 1 . 1 4 . . . 3 2 2 1 Meltdown 7 | . . . . . . . . . . . . . . 1 . . 1 . . 2 . . 1 . . . . . . . . . . . . 2 . Blast 17 | . . . . . . . 1 . . . . . . . . . . . . . 1 . . . 1 2 1 . 1 4 . . . 3 2 . 1 Melee Attacks 165 | . 2 5 . . 12 16 9 32 7 9 5 1 9 . . . . . . . 1 6 . . . . . . . . . . . . . . 51 Kinetic 15 | . . . . . . . . . . . . . . . . . . . . . . . . . . . . . . . . . . . . . 15 Impact 55 | . . 5 . . 12 8 3 25 . . . . 2 . . . . . . . . . . . . . . . . . . . . . . . . Slashing 33 | . . . . . . . . . . . . . . . . . . . . . . . . . . . . . . . . . . . . . 33 Piercing . | . . . . . . . . . . . . . . . . . . . . . . . . . . . . . . . . . . . . . . Sneak Attacks 30 | . 2 . . . 2 8 1 3 3 . 2 1 7 . . . . . . . . 1 . . . . . . . . . . . . . . . Combat Hostiles 4 | . . . . . . . . 3 . . . 1 . . . . . . . . . . . . . . . . . . . . . . . . . Follow-up Attacks . | . . . . . . . . . . . . . . . . . . . . . . . . . . . . . . . . . . . . . . Damage Inflicted 62442 | . 737 1336 . . 2226 2343 1059 525 1309 953 1384 2318 1627 2304 2878 656 1362 695 140 1050 3506 284 275 819 222 1071 1586 275 370 1544 533 2055 4175 2875 4918 2321 10711 Guns 4300 | . 295 . . . 1221 523 61 114 195 . . . . . . . . . . . . . . . . . . . . . . 188 398 . . . 1305 Cannons 40067 | . 391 . . . 372 1005 825 183 1111 953 1294 431 1627 2298 2276 656 1349 649 140 1050 3506 284 275 819 222 1071 1586 275 370 1544 182 763 1115 2303 2007 2321 4814 Explosions 13017 | . 29 1281 . . 363 815 165 . . . . 1887 . . 602 . . . . . . . . . . . . . . . 337 1104 2566 521 2911 . 436 Melee 4650 | . . 48 . . 270 . . 228 . . . . . . . . . . . . . . . . . . . . . . . . . . . . 4104 Ramming 357 | . 22 7 . . . . 8 . 3 . 90 . . 6 . . 13 46 . . . . . . . . . . . . 14 . 96 . . . 52 Kinetic 18118 | . 652 . . . 728 1045 886 297 270 . . . . . . . . . . . 899 . . 797 222 1071 1462 275 370 1544 182 188 398 2090 785 . 3957 Thermal 29035 | . 29 . . . 363 282 . . 1036 953 1294 431 1627 2298 2878 656 1349 649 140 1050 2607 284 275 22 . . 124 . . . . 1867 2156 51 1222 1618 3774 Explosive 9596 | . . 1281 . . . 533 165 . . . . 1887 . . . . . . . . . . . . . . . . . . 337 . 1525 521 2911 . 436 Electromagnetic 2510 | . 34 . . . 865 483 . . . . . . . . . . . . . . . . . . . . . . . . . . . 213 . 703 212 Impact 546 | . . 48 . . 270 . . 228 . . . . . . . . . . . . . . . . . . . . . . . . . . . . . Slashing 2280 | . . . . . . . . . . . . . . . . . . . . . . . . . . . . . . . . . . . . . 2280 Piercing . | . . . . . . . . . . . . . . . . . . . . . . . . . . . . . . . . . . . . . . Highest Corruption 32 | . 2 4 7 7 . . . . . . . . 2 2 . . 4 6 6 6 6 2 2 2 2 . . . . . 3 6 14 25 32 7 21 Average Corruption 7 | . 1 2 4 7 . . . . . . . . 1 2 . . 3 5 6 6 6 1 2 2 2 . . . . . 1 5 11 20 26 5 18 Corruption Purged . | . . . . . . . . . . . . . . . . . . . . . . . . . . . . . . . . . . . . . . Corruption Blocked 55 | . . . . . . . . . . . . . . . . . . . . . . . . . . . . . . 15 . . . 20 20 . . Effects 788 | . 7 9 8 11 . . . . . . . . 3 24 . . 23 37 11 10 56 . 26 45 25 . . . . . 3 42 77 110 94 68 99 Message Errors 208 | . 3 3 1 3 . . . . . . . . 1 6 . . 6 6 1 2 16 . 10 11 12 . . . . . . 12 19 26 27 19 24 Matter Fused 182 | . 1 3 1 4 . . . . . . . . . 9 . . 5 9 2 . 25 . 8 11 6 . . . . . 1 11 15 24 19 8 20 Heat Flow Errors 87 | . . 1 1 1 . . . . . . . . . 4 . . 4 7 1 2 4 . 2 5 . . . . . . 1 4 11 11 12 9 7 Energy Discharges 98 | . . . 2 1 . . . . . . . . . 2 . . 1 9 1 . 5 . . 7 2 . . . . . 1 6 9 12 10 13 17 Parts Rejected 8 | . . . . . . . . . . . . . . 1 . . . . 1 1 . . . . . . . . . . . . 1 2 . . 2 Parts Fused 6 | . . . . . . . . . . . . . . . . . . 1 . . . . 1 . . . . . . . . . 1 1 2 . . Data Loss (minor) 97 | . 1 1 3 . . . . . . . . . . 2 . . 3 3 3 2 3 . 2 8 3 . . . . . . 6 11 13 7 9 17 Data Loss (major) 25 | . 1 1 . 1 . . . . . . . . . . . . 3 1 1 1 . . 1 1 1 . . . . . . 1 3 3 2 2 2 Misfires 30 | . . . . 1 . . . . . . . . 2 . . . . 1 . 1 1 . 1 2 1 . . . . . . 2 3 7 3 4 1 Alerts 15 | . . . . . . . . . . . . . . . . . 1 . 1 . 1 . 1 . . . . . . . . . 1 3 3 2 2 Misdirections 7 | . . . . . . . . . . . . . . . . . . . . . . . . . . . . . . . . . 1 1 . . 5 Weapon Failures 25 | . 1 . . . . . . . . . . . . . . . . . . 1 1 . . . . . . . . . . . 2 7 9 2 2 Overload Shots 59 | . . . . . . . . . . 7 . 6 10 13 4 1 8 3 1 . . . . . . . . . . . . . . . . 4 2 Effects 2 | . . . . . . . . . . . . 1 . . . . . . . . . . . . . . . . . . . . . . . . 1 Energy Bleed 1 | . . . . . . . . . . . . . . . . . . . . . . . . . . . . . . . . . . . . . 1 Heat Surge 1 | . . . . . . . . . . . . 1 . . . . . . . . . . . . . . . . . . . . . . . . . Overflow Damage 3640 | . 9 70 . . 132 8 2 50 8 59 13 38 56 29 215 2 100 24 . 34 90 . 15 149 7 90 292 38 145 477 . 400 127 285 253 209 214 Projectiles 2627 | . 9 . . . . 1 . . 8 59 . 6 56 29 141 2 100 8 . 34 90 . 15 149 7 90 292 38 145 477 . 115 50 285 171 209 41 Explosions 610 | . . 70 . . 1 7 2 . . . . 32 . . 74 . . . . . . . . . . . . . . . . 285 47 . 82 . 10 Melee 403 | . . . . . 131 . . 50 . . 13 . . . . . . 16 . . . . . . . . . . . . . . 30 . . . 163 Knockbacks 98 | . 5 . . . 12 21 4 2 . . . . . . . . . 1 . . 10 . . . 3 5 6 2 2 7 . . . 10 2 . 6 Impact 3 | . 1 . . . 1 . . . . . . . . . . . . 1 . . . . . . . . . . . . . . . . . . . Kinetic 88 | . 4 . . . 11 19 3 2 . . . . . . . . . . . . 10 . . . 3 4 4 2 2 6 . . . 10 2 . 6 Secondary 7 | . . . . . . 2 1 . . . . . . . . . . . . . . . . . . 1 2 . . 1 . . . . . . . Self-Inflicted Damage 727 | . . 10 . . 59 61 . . . . . . . 3 . . 6 23 . . . . . . . . . . . . 93 215 112 52 56 . 37 Shots 14 | . . 1 . . 2 2 . . . . . . . . . . . . . . . . . . . . . . . . 1 3 2 1 1 . 1 Rammed 19 | . 4 2 . . . . . . . . . . . 1 . . 1 1 . . . . . . . . . . . . 1 . 4 . . . 5 Targets Rammed 30 | . 5 2 . . . . 1 . 1 . 7 . . 1 . . 1 1 . . . . . . . . . . . . 1 . 4 . . . 6 Kicked 9 | . . . . . . . 1 . 1 . 7 . . . . . . . . . . . . . . . . . . . . . . . . . . Crushed 2 | . 1 . . . . . . . . . . . . . . . . . . . . . . . . . . . . . . . . . . . 1 Highest Temperature 551 | . 35 253 238 233 288 383 195 10 108 270 124 312 186 424 108 58 551 239 260 315 344 172 262 227 107 444 385 44 52 166 131 240 510 342 360 358 422 Average Temperature 87 | . 18 131 113 104 90 117 76 5 26 50 29 78 38 84 21 16 183 77 73 122 95 58 58 54 29 71 107 21 24 51 49 78 123 99 106 113 110 Received Heat Transfer 3516 | . 57 . . . 360 189 118 79 75 72 252 36 231 471 193 45 30 78 . . 99 . 12 28 12 32 116 . . 45 9 134 141 54 90 95 363 Effects 36 | . . . . . 1 . . . . . . . . 1 . . 1 . . 1 . . . 1 . 2 2 . . . . . 3 . 5 7 12 Shutdowns 9 | . . . . . . . . . . . . . . . . . 1 . . . . . . . . 1 1 . . . . . 1 . 1 1 3 Energy Bleed 11 | . . . . . 1 . . . . . . . . 1 . . . . . 1 . . . . . 1 1 . . . . . 1 . 1 1 3 Interference 13 | . . . . . . . . . . . . . . . . . . . . . . . . 1 . . . . . . . . 1 . 3 5 3 Damage (major) 3 | . . . . . . . . . . . . . . . . . . . . . . . . . . . . . . . . . . . . . 3 Siege Activations . | . . . . . . . . . . . . . . . . . . . . . . . . . . . . . . . . . . . . . . Robots Corrupted 4 | . . . . . 1 . . . . . . . . . . . . . . . . . . . . . . . . . . . . 2 . 1 . Combat Hostiles 4 | . . . . . 1 . . . . . . . . . . . . . . . . . . . . . . . . . . . . 2 . 1 . Parts Fried 22 | . . . . . 10 . . 4 . . . . . . . . . . . . 1 . . . . . . . . . . . . . . 5 2 Impact Corruptions 15 | . . . . . 7 . . 3 . . 2 . . . . . . 1 . . . . . . . . . . . 1 . . 1 . . . . Robots Melted 12 | . . . . . . . . . . . . . 2 4 . . 1 . . 2 . . 1 . . . . . . . . . . . . 2 . Combat Hostiles 9 | . . . . . . . . . . . . . 2 4 . . . . . . . . 1 . . . . . . . . . . . . 2 . Parts Melted 79 | . . . . . . . . . 2 5 3 . 7 10 11 . 7 1 . 8 7 . 3 . . . . . . . . . 4 . . 11 . Heat Transferred 29897 | . 50 . . . 400 275 . . 1480 1247 1702 483 2098 2849 3696 950 1817 785 175 1612 3445 350 411 25 . . 73 . . . . 1178 1450 111 999 1323 913 Parts Sabotaged . | . . . . . . . . . . . . . . . . . . . . . . . . . . . . . . . . . . . . . . Parts Stolen . | . . . . . . . . . . . . . . . . . . . . . . . . . . . . . . . . . . . . . . Parts Stripped . | . . . . . . . . . . . . . . . . . . . . . . . . . . . . . . . . . . . . . . Power Chain Reactions 11 | . 1 . . . 5 5 . . . . . . . . . . . . . . . . . . . . . . . . . . . . . . . Alert | -11 -10 -10 -10 -9 -8 -8 -8 -8 -8 -8 -8 -8 -7 -7 -6 -6 -6 -6 -6 -6 -6 -5 -5 -5 -5 -4 -4 -3 -3 -3 -2 -2 -2 -2 -2 -1 -1 ------- Run | Yrd Mat Min Exi Min Mat Gar Mat Gar Mat Gar Mat Gar Fac Gar Fac Gar Fac Ext Cet Arc Hub Fac Gar Fac Gar Fac Gar Res Tes Gar Res Gar Res Qua Sec Acc Com Peak Influence 1204 | . 149 22 . . 446 727 609 637 365 644 378 1101 680 1204 650 574 376 141 910 587 474 122 495 362 183 99 764 628 225 119 82 270 256 133 224 117 183 Initial 632 | . . . . . . . 334 339 310 120 305 27 577 184 632 114 292 7 . 364 135 73 . 259 53 92 12 429 201 1 66 . 151 9 4 . 51 Average 201 | . 53 4 . . 182 379 450 482 102 450 86 605 326 726 453 396 82 29 549 513 200 99 215 103 84 36 346 444 58 41 27 160 70 34 56 37 51 Maximum Alert Level 4 | . . . . . 2 3 2 2 1 2 1 4 2 4 2 2 1 . 3 2 2 . 2 1 . . 3 2 1 . . 1 1 . 1 . . Low Security (%) 65 | 100 100 100 . 100 45 19 . . 85 9 88 29 33 6 11 19 83 100 31 . 64 100 63 83 100 100 16 . 86 100 100 72 96 100 98 100 100 Level 1 13 | . . . . . 51 29 28 19 14 25 11 . 24 7 9 22 16 . 6 21 34 . 6 16 . . 33 32 13 . . 27 3 . 1 . . Level 2 16 | . . . . . 3 43 71 80 . 64 . 12 41 21 79 58 . . 10 78 1 . 29 . . . 43 67 . . . . . . . . . Level 3 4 | . . . . . . 7 . . . . . 52 . 61 . . . . 51 . . . . . . . 6 . . . . . . . . . . Level 4 . | . . . . . . . . . . . . 3 . 2 . . . . . . . . . . . . . . . . . . . . . . . Level 5 . | . . . . . . . . . . . . . . . . . . . . . . . . . . . . . . . . . . . . . . High Security . | . . . . . . . . . . . . . . . . . . . . . . . . . . . . . . . . . . . . . . Max Security . | . . . . . . . . . . . . . . . . . . . . . . . . . . . . . . . . . . . . . . Squads Dispatched 161 | . 1 . . . 2 . 5 . 4 . 5 . 7 . 14 . 6 2 . . 10 2 . 8 . 9 1 8 16 . 8 . 13 5 14 16 5 Investigation 30 | . 1 . . . 2 . 3 . . . 1 . 2 . 2 . 2 . . . . 2 . 2 . 1 . 3 4 . 1 . 2 1 . 1 . Extermination 48 | . . . . . . . . . . . . . 3 . 4 . 2 . . . 4 . . 3 . 4 . . 5 . 1 . 4 4 5 5 4 Reinforcement 71 | . . . . . . . . . 4 . 4 . 2 . 3 . 2 2 . . 6 . . 3 . 4 1 5 7 . 4 . 5 . 9 9 1 Assault 1 | . . . . . . . . . . . . . . . 1 . . . . . . . . . . . . . . . . . . . . . . Garrison 11 | . . . . . . . 2 . . . . . . . 4 . . . . . . . . . . . . . . . 2 . 2 . . 1 . Intercept . | . . . . . . . . . . . . . . . . . . . . . . . . . . . . . . . . . . . . . . Searches Triggered . | . . . . . . . . . . . . . . . . . . . . . . . . . . . . . . . . . . . . . . Construction Impeded 13 | . . . . . . . . . . . 1 . 1 . 1 . 1 . . . . . . 1 . . 1 1 . . . . 1 . 1 4 . Haulers Reinforced 9 | . . . . . . . . . . . . . . . 1 . 1 . . . . . . . . . . 1 . . 2 . . . 1 3 . Active Scanning Responses . | . . . . . . . . . . . . . . . . . . . . . . . . . . . . . . . . . . . . . . Cargo Convoy Interrupts 2 | . . . . . . . . . . . . . . . . . . . . . . . . 1 . . . . . . 1 . . . . . . Alert ID Control Effect 394 | . . . . . . . . . . . 2 3 . 9 20 13 10 1 3 . 1 3 11 20 15 30 23 17 42 15 17 11 16 8 31 50 23 Stealth | -11 -10 -10 -10 -9 -8 -8 -8 -8 -8 -8 -8 -8 -7 -7 -6 -6 -6 -6 -6 -6 -6 -5 -5 -5 -5 -4 -4 -3 -3 -3 -2 -2 -2 -2 -2 -1 -1 --------- Run | Yrd Mat Min Exi Min Mat Gar Mat Gar Mat Gar Mat Gar Fac Gar Fac Gar Fac Ext Cet Arc Hub Fac Gar Fac Gar Fac Gar Res Tes Gar Res Gar Res Qua Sec Acc Com Distress Signals 55 | . . . . . . . 2 . 2 . 2 3 1 . 2 . 2 2 . . 4 . . 4 . 6 . 9 2 . . . 4 1 5 2 2 Communications Jammed 41 | . . . . . . . . . . . . . . . . . . . . . 41 . . . . . . . . . . . . . . . . Distress Signals 41 | . . . . . . . . . . . . . . . . . . . . . 41 . . . . . . . . . . . . . . . . Times Spotted 1302 | . 14 17 . . 32 29 22 12 33 18 39 27 29 45 55 33 40 26 11 24 61 8 44 40 31 66 47 30 53 39 40 35 70 29 59 82 62 Peak Tracking Total 14 | . 2 14 . . 4 4 7 9 4 3 5 11 5 5 5 6 6 5 5 2 5 5 7 3 12 5 5 7 5 10 12 9 9 4 7 7 14 Tactical Retreats 27 | . . 2 . . 1 . 1 2 1 . 3 4 . 1 . . 1 . . . 1 . . . . . 1 . . . . . 2 . 1 2 4 Traps | -11 -10 -10 -10 -9 -8 -8 -8 -8 -8 -8 -8 -8 -7 -7 -6 -6 -6 -6 -6 -6 -6 -5 -5 -5 -5 -4 -4 -3 -3 -3 -2 -2 -2 -2 -2 -1 -1 ------- Run | Yrd Mat Min Exi Min Mat Gar Mat Gar Mat Gar Mat Gar Fac Gar Fac Gar Fac Ext Cet Arc Hub Fac Gar Fac Gar Fac Gar Res Tes Gar Res Gar Res Qua Sec Acc Com Traps Triggered 67 | . 2 . . . 2 3 2 2 2 . . 8 . 5 . 2 . 1 . . . . 5 1 5 . 7 2 . 3 . 8 3 1 . 3 . Indirectly . | . . . . . . . . . . . . . . . . . . . . . . . . . . . . . . . . . . . . . . Trap Hack Attempts 58 | . 15 . . . . . . . . 11 . . 30 . . . . . . . 2 . . . . . . . . . . . . . . . . Triggered . | . . . . . . . . . . . . . . . . . . . . . . . . . . . . . . . . . . . . . . Disarmed 4 | . 1 . . . . . . . . 1 . . 1 . . . . . . . . . . . . . . . 1 . . . . . . . . Reprogrammed 1 | . . . . . . . . . . . . . . . . . . . . . 1 . . . . . . . . . . . . . . . . Reused 1 | . . . . . . . . . . . . . . . . . . . . . 1 . . . . . . . . . . . . . . . . Traps Extracted . | . . . . . . . . . . . . . . . . . . . . . . . . . . . . . . . . . . . . . . Installed . | . . . . . . . . . . . . . . . . . . . . . . . . . . . . . . . . . . . . . . Triggered 3 | . . . . . . . . . . . . . . . . . . . . . 1 . . 1 . . . 1 . . . . . . . . . Machines | -11 -10 -10 -10 -9 -8 -8 -8 -8 -8 -8 -8 -8 -7 -7 -6 -6 -6 -6 -6 -6 -6 -5 -5 -5 -5 -4 -4 -3 -3 -3 -2 -2 -2 -2 -2 -1 -1 ---------- Run | Yrd Mat Min Exi Min Mat Gar Mat Gar Mat Gar Mat Gar Fac Gar Fac Gar Fac Ext Cet Arc Hub Fac Gar Fac Gar Fac Gar Res Tes Gar Res Gar Res Qua Sec Acc Com Machines Disabled 96 | . 1 . . . 2 2 . 1 1 4 2 6 1 2 6 3 6 . 1 3 6 . 1 4 1 1 3 1 7 . 4 2 3 7 9 3 3 Max in Single Turn 4 | . 1 . . . 1 1 . 1 1 1 1 1 1 1 4 1 3 . 1 1 1 . . 1 . . . . 1 . 1 . 1 1 1 . . Garrison Access 12 | . . . . . . . . . . . . . 1 . . . 2 . . . . . . 2 . 1 . 1 . . . . 2 1 . 2 . Garrison Relay 45 | . . . . . . 1 . 1 . 3 . 4 . 5 . 4 . . . . . . 4 . 4 . 9 . . 5 . 5 . . . . . Phase Generator 3 | . . . . . . . . . . . . . . . . . . . . . . . 1 . . . 1 . . . . 1 . . . . . Network Hub 1 | . . . . . . . . . . . . . . . . . . . . . 1 . . . . . . . . . . . . . . . . Machines Repaired . | . . . . . . . . . . . . . . . . . . . . . . . . . . . . . . . . . . . . . . Machines Dismantled 40 | . . . . . . . . . . . . . . 5 . 6 . . . . . . 4 . 4 2 5 . 2 5 . 5 . 2 . . . Machines Sabotaged . | . . . . . . . . . . . . . . . . . . . . . . . . . . . . . . . . . . . . . . Overloaded Fab Kills . | . . . . . . . . . . . . . . . . . . . . . . . . . . . . . . . . . . . . . . Hacking | -11 -10 -10 -10 -9 -8 -8 -8 -8 -8 -8 -8 -8 -7 -7 -6 -6 -6 -6 -6 -6 -6 -5 -5 -5 -5 -4 -4 -3 -3 -3 -2 -2 -2 -2 -2 -1 -1 --------- Run | Yrd Mat Min Exi Min Mat Gar Mat Gar Mat Gar Mat Gar Fac Gar Fac Gar Fac Ext Cet Arc Hub Fac Gar Fac Gar Fac Gar Res Tes Gar Res Gar Res Qua Sec Acc Com Machines Accessed 207 | . 8 2 2 1 14 2 2 1 10 3 7 2 13 2 5 3 15 16 1 . 5 2 2 15 3 11 1 5 13 2 3 1 7 12 1 11 4 Terminals 142 | . 7 1 . . 10 2 1 1 7 3 4 2 7 2 1 3 9 15 1 . 5 . 2 10 3 5 1 3 8 2 1 1 3 10 1 8 3 Fabricators 15 | . . . . . . . . . . . . . 2 . 2 . 4 . . . . . . 1 . 2 . 1 2 . . . 1 . . . . Repair Stations 15 | . . . . . 2 . . . 1 . 1 . . . 1 . . . . . . 1 . 1 . 1 . . 2 . 1 . 1 1 . 1 1 Recycling Units 5 | . 1 . . . . . . . . . . . 2 . . . . 1 . . . . . . . 1 . . . . . . . . . . . Scanalyzers 3 | . . . . . 1 . . . 1 . 1 . . . . . . . . . . . . . . . . . . . . . . . . . . Garrison Access 23 | . . . . . 1 . 1 . 1 . 1 . 2 . 1 . 2 . . . . 1 . 3 . 2 . 1 1 . 1 . 2 1 . 2 . Total Hacks 510 | . 18 4 5 1 40 5 4 2 26 5 22 4 33 4 11 7 28 31 2 . 11 11 7 36 13 29 4 13 42 8 10 3 12 26 3 25 5 Successful 240 | . 8 2 5 1 23 1 2 2 17 2 15 1 21 1 10 1 11 15 . . 2 5 2 16 4 17 . 4 14 3 5 1 6 6 2 12 3 Failed 268 | . 9 2 . . 16 4 2 . 9 3 7 3 12 3 1 6 17 16 2 . 9 6 5 20 9 12 4 9 28 5 5 2 6 20 1 13 2 Catastrophic 80 | . 3 1 . . 1 3 . . 6 1 2 1 5 . . 1 4 2 . . 2 3 2 9 4 3 1 4 5 . 1 2 1 6 . 7 . Database Lockouts 2 | . 1 . . . 1 . . . . . . . . . . . . . . . . . . . . . . . . . . . . . . . . Manual 242 | . 8 3 1 . 20 3 3 1 12 4 12 1 13 . 3 1 12 13 1 . 8 3 5 17 9 18 2 6 19 5 9 2 7 10 1 9 1 Terminals 356 | . 17 3 . . 28 5 1 2 19 5 15 4 20 4 2 7 16 30 2 . 11 . 7 23 13 19 4 8 25 8 7 3 5 22 3 15 3 Fabricators 47 | . . . . . . . . . . . . . 5 . 5 . 10 . . . . . . 6 . 3 . 3 12 . . . 3 . . . . Repair Stations 42 | . . . . . 8 . . . 2 . 4 . . . 2 . . . . . . 7 . 1 . 2 . . 4 . 1 . 2 3 . 4 2 Recycling Units 7 | . 1 . . . . . . . . . . . 4 . . . . 1 . . . . . . . 1 . . . . . . . . . . . Scanalyzers 8 | . . . . . 2 . . . 4 . 2 . . . . . . . . . . . . . . . . . . . . . . . . . . Garrison Access 43 | . . . . . 2 . 3 . 1 . 1 . 4 . 2 . 2 . . . . 4 . 6 . 4 . 2 1 . 2 . 2 1 . 6 . Terminal Hacks 107 | . 6 2 5 1 11 1 . 2 8 2 7 1 5 1 . 1 3 13 . . 1 . 2 5 3 1 . . 8 3 2 1 1 4 1 4 2 Record 5 | . . . 4 . . . . . . . . . . . . . . . . . . . . . . . . . . . . . . 1 . . . Part Schematic 5 | . 1 . . . 1 . . . . . . . . . . . . . . . . . . 1 . . . . 2 . . . . . . . . Robot Schematic 1 | . . 1 . . . . . . . . . . . . . . . . . . . . . . . . . . . . . . . . . . . Robot Analysis 9 | . . . . . 3 . . . . . 2 . . . . . . 3 . . . . . . . . . . . . . . . 1 . . . Prototype ID Bank 9 | . 4 . . . 1 . . . . . 1 . 1 . . . . 1 . . . . . 1 . . . . . . . . . . . . . Open Door 19 | . . 1 . 1 . . . . . 1 . . . 1 . . 1 6 . . . . . . . . . . 1 1 . . . 1 . 3 2 Branch Access Points 3 | . . . . . . . . . . . . . . . . . 1 . . . . . . . . . . . . . . . 1 . . 1 . Emergency Access Points 4 | . . . . . . . . . . . 1 1 . . . . . . . . . . 1 . . . . . . . . 1 . . . . . Terminal Index 4 | . . . . . . . . . . . . . 1 . . . 1 . . . . . . 1 . . . . . . 1 . . . . . . Repair Station Index 1 | . . . . . . . . . . . . . 1 . . . . . . . . . . . . . . . . . . . . . . . . Garrison Index 1 | . . . . . . . . . 1 . . . . . . . . . . . . . . . . . . . . . . . . . . . . Alert Level 1 | . . . . . 1 . . . . . . . . . . . . . . . . . . . . . . . . . . . . . . . . Unreport Threat 8 | . . . . . 3 . . . 2 . 2 . . . . . . . . . . . . . . . . . 1 . . . . . . . . Locate Traps 9 | . 1 . . . 1 . . . 3 . . . . . . . . 2 . . . . . . . . . . 2 . . . . . . . . Disarm Traps 1 | . . . . . . . . . . . . . . . . . . . . . . . . . . . . . 1 . . . . . . . . Patrol Status 1 | . . . . . . . . . . . . . . . . . . . . . . . . . . . . . . . . . . . 1 . . Reinforcement Status 1 | . . . . . . . . . . . . . . . . . . . . . . . . . . . . . 1 . . . . . . . . Recall Investigation 1 | . . . . . . . . . . . . . . . . . . . . . . . . . . . . . . . . . . 1 . . . Recall Extermination 1 | . . . . . . . . . . . . . . . . . . . . . . . . . . . . . . . 1 . . . . . . Recall Reinforcements 4 | . . . . . . . . . 1 . . . . . . . . 1 . . 1 . . 1 . . . . . . . . . . . . . Hauler Manifests 3 | . . . . . 1 . . . . . . . 1 . . . . . . . . . . 1 . . . . . . . . . . . . . Zone Layout 4 | . . . . . . . . . 1 . 1 . 1 . . . . . . . . . . . . 1 . . . . . . . . . . . Garrison Registry 5 | . . . . . . . . 1 . 1 . . . . . 1 . . . . . . . . 1 . . . . 1 . . . . . . . Patrol Navigation 5 | . . . . . . 1 . 1 . . . . . . . . . . . . . . 1 . 1 . . . . 1 . . . . . . . Security Stations 1 | . . . . . . . . . . . . . . . . . . . . . . . . . 1 . . . . . . . . . . . . Derelict Proto ID Bank 1 | . . . 1 . . . . . . . . . . . . . . . . . . . . . . . . . . . . . . . . . . Fabricator Hacks 25 | . . . . . . . . . . . . . 4 . 5 . 5 . . . . . . 3 . 2 . 1 3 . . . 2 . . . . Network Status 3 | . . . . . . . . . . . . . . . . . 1 . . . . . . . . 2 . . . . . . . . . . . Load Schematic 12 | . . . . . . . . . . . . . 2 . 2 . 3 . . . . . . 1 . . . 1 2 . . . 1 . . . . Build 10 | . . . . . . . . . . . . . 2 . 3 . 1 . . . . . . 2 . . . . 1 . . . 1 . . . . Repair Station Hacks 14 | . . . . . 6 . . . 1 . 1 . . . 2 . . . . . . 3 . . . . . . . . . . . . . 1 . Scan Component 9 | . . . . . 3 . . . 1 . 1 . . . 1 . . . . . . 2 . . . . . . . . . . . . . 1 . Repair 5 | . . . . . 3 . . . . . . . . . 1 . . . . . . 1 . . . . . . . . . . . . . . . Recycling Unit Hacks 2 | . . . . . . . . . . . . . 1 . . . . . . . . . . . . 1 . . . . . . . . . . . Retrieve Components 2 | . . . . . . . . . . . . . 1 . . . . . . . . . . . . 1 . . . . . . . . . . . Scanalyzer 8 | . . . . . 2 . . . 4 . 2 . . . . . . . . . . . . . . . . . . . . . . . . . . Insert Component 4 | . . . . . 1 . . . 2 . 1 . . . . . . . . . . . . . . . . . . . . . . . . . . Analyze 4 | . . . . . 1 . . . 2 . 1 . . . . . . . . . . . . . . . . . . . . . . . . . . Garrison Access Hacks 26 | . . . . . 1 . 1 . 1 . 1 . 3 . 1 . 2 . . . . 1 . 3 . 3 . 2 1 . 1 . 2 1 . 2 . Unlock Access 11 | . . . . . 1 . 1 . 1 . 1 . 1 . 1 . . . . . . 1 . 1 . 1 . . 1 . 1 . . . . . . Seal Access 12 | . . . . . . . . . . . . . 1 . . . 2 . . . . . . 2 . 1 . 1 . . . . 2 1 . 2 . Coupler Status 3 | . . . . . . . . . . . . . 1 . . . . . . . . . . . . 1 . 1 . . . . . . . . . Unauthorized Hacks 58 | . 2 . . . 3 . 1 . 3 . 4 . 8 . 2 . 1 2 . . 1 1 . 5 1 10 . 1 2 . 2 . 1 1 1 5 1 Terminals 46 | . 1 . . . 3 . . . 3 . 4 . 7 . 2 . 1 2 . . 1 . . 5 1 8 . 1 2 . . . . 1 1 2 1 Track 7 | . . . . . . . . . . . . . 4 . . . . . . . . . . 1 . 2 . . . . . . . . . . . Assimilate 6 | . . . . . 1 . . . 1 . 1 . . . . . . 1 . . . . . 2 . . . . . . . . . . . . . Botnet 24 | . 1 . . . 2 . . . 2 . 2 . 2 . 1 . 1 1 . . 1 . . 1 1 2 . 1 2 . . . . 1 1 1 1 Disrupt 5 | . . . . . . . . . . . 1 . . . . . . . . . . . . . . 3 . . . . . . . . . 1 . Operators 4 | . . . . . . . . . . . . . 1 . 1 . . . . . . . . 1 . 1 . . . . . . . . . . . Fabricators 1 | . . . . . . . . . . . . . . . . . . . . . . . . . . 1 . . . . . . . . . . . Liberate 1 | . . . . . . . . . . . . . . . . . . . . . . . . . . 1 . . . . . . . . . . . Repair Stations 3 | . . . . . . . . . . . . . . . . . . . . . . . . . . . . . . . 1 . 1 . . 1 . Mechanics 3 | . . . . . . . . . . . . . . . . . . . . . . . . . . . . . . . 1 . 1 . . 1 . Recycling Units 1 | . 1 . . . . . . . . . . . . . . . . . . . . . . . . . . . . . . . . . . . . Tunnel 1 | . 1 . . . . . . . . . . . . . . . . . . . . . . . . . . . . . . . . . . . . Scanalyzers . | . . . . . . . . . . . . . . . . . . . . . . . . . . . . . . . . . . . . . . Garrison Access 7 | . . . . . . . 1 . . . . . 1 . . . . . . . . 1 . . . 1 . . . . 1 . . . . 2 . Restock 6 | . . . . . . . . . . . . . 1 . . . . . . . . 1 . . . 1 . . . . 1 . . . . 2 . Reprogram 1 | . . . . . . . 1 . . . . . . . . . . . . . . . . . . . . . . . . . . . . . . Data Cores Recovered 5 | . 1 . . . . . . . . . . . . . 1 . . . . . . . . . . . . . . . . . . 1 . 2 . Used . | . . . . . . . . . . . . . . . . . . . . . . . . . . . . . . . . . . . . . . Hacking Detections 169 | . 6 1 . . 14 2 2 1 9 3 6 2 11 2 5 3 13 13 1 . 5 2 2 14 2 5 1 5 10 1 3 1 4 10 1 7 2 Full Trace Events 20 | . 2 . . . 1 . 1 . . . . . 2 . 1 . 2 . . . . 2 . 1 . . . 1 2 . 1 1 1 1 . 1 . Feedback Events 2 | . . . . . . . . . . . . . . . . . . . . . . . . . . . . . . . 1 . . . . 1 . Corruption 2 | . . . . . . . . . . . . . . . . . . . . . . . . . . . . . . . 1 . . . . 1 . Feedback Blocked . | . . . . . . . . . . . . . . . . . . . . . . . . . . . . . . . . . . . . . . Robot Schematics Acquired 8 | . . 1 . . . . . . . . . . . . . . . . . . . . . . . . . . 5 . . . . 2 . . . Robots Built 9 | . . . . . . . . . . . . . . . 5 . . . . . . . . 3 . . . . 1 . . . . . . . . Authchips 1 | . . . . . . . . . . . . . . . 1 . . . . . . . . . . . . . . . . . . . . . . Time 463 | . . . . . . . . . . . . . . . 146 . 40 . . . . . . 250 . . . . 27 . . . . . . . . Total Robot Build Rating 25 | . . . . . . . . . . . . . . . 11 . . . . . . . . 13 . . . . 1 . . . . . . . . Part Schematics Acquired 34 | . 1 . . . 2 . . . 2 . 1 . . . . . . . . . . . . 1 . . . . 22 . . . . 5 . . . Parts Built 5 | . . . . . . . . . . . . . 4 . . . . . . . . . . . . . . . . . . . 1 . . . . Authchips . | . . . . . . . . . . . . . . . . . . . . . . . . . . . . . . . . . . . . . . Time 158 | . . . . . . . . . . . . . 82 . . . . . . . . . . . . . . . . . . . 76 . . . . Total Part Build Rating 12 | . . . . . . . . . . . . . 7 . . . . . . . . . . . . . . . . . . . 5 . . . . Parts Repaired 5 | . . . . . 3 . . . . . . . . . 1 . . . . . . 1 . . . . . . . . . . . . . . . Time 228 | . . . . . 136 . . . . . . . . . 38 . . . . . . 54 . . . . . . . . . . . . . . . Parts Recycled . | . . . . . . . . . . . . . . . . . . . . . . . . . . . . . . . . . . . . . . Recycled Matter . | . . . . . . . . . . . . . . . . . . . . . . . . . . . . . . . . . . . . . . Retrieved Matter . | . . . . . . . . . . . . . . . . . . . . . . . . . . . . . . . . . . . . . . Retrieved Components 17 | . . . . . . . . . . . . . 8 . . . . . . . . . . . . 9 . . . . . . . . . . . Parts Scanalyzed 4 | . . . . . 1 . . . 2 . 1 . . . . . . . . . . . . . . . . . . . . . . . . . . Part Schematics Acquired 4 | . . . . . 1 . . . 2 . 1 . . . . . . . . . . . . . . . . . . . . . . . . . . Parts Damaged . | . . . . . . . . . . . . . . . . . . . . . . . . . . . . . . . . . . . . . . Bothacking | -11 -10 -10 -10 -9 -8 -8 -8 -8 -8 -8 -8 -8 -7 -7 -6 -6 -6 -6 -6 -6 -6 -5 -5 -5 -5 -4 -4 -3 -3 -3 -2 -2 -2 -2 -2 -1 -1 ------------ Run | Yrd Mat Min Exi Min Mat Gar Mat Gar Mat Gar Mat Gar Fac Gar Fac Gar Fac Ext Cet Arc Hub Fac Gar Fac Gar Fac Gar Res Tes Gar Res Gar Res Qua Sec Acc Com Used RIF Installer 11 | . . . . . . 1 . 1 . 2 . 1 . 1 . 1 . . . . . . 1 . . . 1 . . 1 . 1 . . . . . Coupler Efficiency 1 | . . . . . . . . . . . . . . 1 . . . . . . . . . . . . . . . . . . . . . . . Code Merge 1 | . . . . . . . . . . . . . . . . . . . . . . . . . . . 1 . . . . . . . . . . Command Fork 1 | . . . . . . . . . . . . 1 . . . . . . . . . . . . . . . . . . . . . . . . . Threat Obfuscator 3 | . . . . . . . . . . . . . . . . 1 . . . . . . . . . . . . . 1 . 1 . . . . . Watcher Feeds 1 | . . . . . . . . 1 . . . . . . . . . . . . . . . . . . . . . . . . . . . . . Alert ID Control 1 | . . . . . . . . . . 1 . . . . . . . . . . . . . . . . . . . . . . . . . . . Program Shield 1 | . . . . . . . . . . 1 . . . . . . . . . . . . . . . . . . . . . . . . . . . Autoassimilate 1 | . . . . . . . . . . . . . . . . . . . . . . . 1 . . . . . . . . . . . . . . Robots Hacked 366 | . 1 . . . . . 5 6 4 5 4 1 5 11 17 10 11 11 . 1 5 4 12 18 10 27 15 4 25 17 18 17 28 6 22 37 9 Non-combat 63 | . 1 . . . . . 1 . 2 . 1 . 3 . 4 . 3 1 . 1 2 2 . 6 . 4 1 . 1 . 2 . 5 . 8 12 3 Combat 302 | . . . . . . . 4 6 2 5 3 1 2 11 13 10 8 10 . . 3 2 12 12 10 23 14 4 24 17 16 17 23 6 14 25 5 Autoassimilated 48 | . . . . . . . . . . . . . . . . . . . . . . . . 3 4 4 4 1 7 1 3 1 2 1 7 8 2 Robot Hacks Applied 359 | . 1 . . . . . 5 6 4 5 5 1 8 11 21 10 13 11 . 1 8 5 12 18 6 26 13 3 20 16 17 17 27 6 20 37 6 parse_system 3 | . . . . . . . . . . . 1 . . . 1 . . . . . . . . . . . . . . . . . . . 1 . . no_distress 10 | . 1 . . . . . . . . . . . . . . . . . . . . . . . . 1 . . . . . . . . 2 6 . ignore_repairs 15 | . . . . . . . . . . . . . . . . . 1 . . . 1 . . 3 . 1 1 . . . . . . . 5 3 . map_walls 2 | . . . . . . . . . . . . . . . . . . . . . . . . . . . 1 . . . . . . . . 1 . map_earth 1 | . . . . . . . . . . . . . . . . . 1 . . . . . . . . . . . . . . . . . . . . find_fabricator 6 | . . . . . . . . . . . . . 1 . 1 . . . . . . 1 . . . . . . . . . . 2 . . 1 . find_dsf 1 | . . . . . . . . . . . . . 1 . . . . . . . . . . . . . . . . . . . . . . . . drop_inventory 8 | . . . . . . . . . . . . . . . . . . . . . . 1 . 1 . 1 . . . . . . 1 . 1 3 . recall_reinforcements 2 | . . . . . . . . . . . . . . . . . . . . . . . . . . . . . . . . . . . . 2 . find_recycling 1 | . . . . . . . 1 . . . . . . . . . . . . . . . . . . . . . . . . . . . . . . purge_threat 13 | . . . . . . . . . 1 . . . 2 . 3 . . . . . 4 . . 1 . . . . 1 . . . . . 1 . . find_terminals 1 | . . . . . . . . . . . . . . . . . . . . . . . . . . . . . . . . . . . . 1 . block_reporting 4 | . . . . . . . . . . . . . . . 1 . 1 . . . . . . . . . . . . . . . . . . 2 . recall_investigation 1 | . . . . . . . . . . . . . . . . . 1 . . . . . . . . . . . . . . . . . . . . mark_security 1 | . . . . . . . . . . . . . . . . . . . . . . . . . . . . . . . 1 . . . . . . disable_scanner 4 | . . . . . . . . . . . . . . . . . . . . . . . . . . . . . 4 . . . . . . . . locate_prototypes 2 | . . . . . . . . . . . . . . . . . . . . . . . . . . . . . 1 . . . . 1 . . . report_prototypes 1 | . . . . . . . . . . . . . . . . . . . . . . . . . . . . . . . . . . 1 . . . find_garrison 6 | . . . . . . . . . . . 1 . . . . . . . . . . . . 2 . 2 . . . . 1 . . . . . . link_fov 1 | . . . . . . . . . . . . . . . . . . . . . . . . . . . 1 . . . . . . . . . . scatter_targeting 1 | . . . . . . . . . . . . . . . . . . . . . . . . . . . . . . . . 1 . . . . . mark_system 3 | . . . . . . . . . . . . . . . . . . . . . . . . . . . . . 1 . 1 1 . . . . . disrupt_area 1 | . . . . . . . . . . . . . . . . . . . . . . . . . . . . . . . . . . . . 1 . overload_power 4 | . . . . . . . . 1 . . . . . . . . . . . . . . . . . 1 . . . . . 1 1 . . . . amplify_resonance 17 | . . . . . . . . . . . . . . 1 1 1 1 . . . . . 2 . 1 . . . 1 1 . 3 . . 1 4 . disable_weapons 4 | . . . . . . . . . . . . . . . . . . 1 . . . . . . . . . . 1 . 1 . . . . 1 . go_dormant 1 | . . . . . . . . . . 1 . . . . . . . . . . . . . . . . . . . . . . . . . . . overwrite_iff 11 | . . . . . . . 1 2 . . . . . 1 . . . . . . . . 1 . 1 . . 2 1 . 1 . 1 . . . . streamctrl_high 1 | . . . . . . . . 1 . . . . . . . . . . . . . . . . . . . . . . . . . . . . . formatsys_low 29 | . . . . . . . . . 1 . 1 . 2 . 2 . 1 1 . 1 . 1 . 2 . 3 . . 3 . 1 . 3 1 2 1 3 formatsys_high 204 | . . . . . . . 3 2 2 4 2 1 2 9 12 9 7 9 . . 3 2 9 9 4 17 10 1 7 15 11 11 19 3 7 11 3 Manual 1 | . . . . . . . . . . . . . . . . . . . . . . . . . . . . . . . . . . . . . 1 Relay Couplers Released 214 | . . . . . . 3 . 4 . 14 . 18 . 21 4 16 2 . . . . 4 15 1 14 4 40 1 3 20 . 21 1 1 . 7 . Machine Destruction 193 | . . . . . . 3 . 4 . 14 . 18 . 21 . 16 2 . . . . . 15 1 14 . 40 1 . 17 . 21 1 1 . 4 . Programmers 21 | . . . . . . . . . . . . . . . 4 . . . . . . 4 . . . 4 . . 3 3 . . . . . 3 . Attached 129 | . . . . . . . 2 3 1 3 3 . 3 7 9 5 6 4 . . 3 1 8 3 6 7 10 2 3 6 4 6 9 2 2 8 3 Merged Code Value 246 | . . . . . . . . . . . . . . . . . . . . . . . . . . . 76 . . 151 . 9 10 . . . . Fabnet Peak Effective % . | . . . . . . . . . . . . . . . . . . . . . . . . . . . . . . . . . . . . . . Robots Rewired 26 | . . . . . . 6 . . . . . . . . 1 . . 10 . . . . 1 . . . 4 . . . . 3 1 . . . . Allies Hacked 11 | . . . . . . 1 . . . . . . . . . . . . . . . . . 1 . . . . . 1 1 . . 1 1 . 5 Hacks Repelled 1 | . . . . . . . . . . . . . . . . . . . . . . . . . . . . . . . . . . . . . 1 Allies | -11 -10 -10 -10 -9 -8 -8 -8 -8 -8 -8 -8 -8 -7 -7 -6 -6 -6 -6 -6 -6 -6 -5 -5 -5 -5 -4 -4 -3 -3 -3 -2 -2 -2 -2 -2 -1 -1 -------- Run | Yrd Mat Min Exi Min Mat Gar Mat Gar Mat Gar Mat Gar Fac Gar Fac Gar Fac Ext Cet Arc Hub Fac Gar Fac Gar Fac Gar Res Tes Gar Res Gar Res Qua Sec Acc Com Total Allies 407 | . . 2 . . 1 6 4 5 4 5 4 1 4 12 21 10 9 27 5 1 3 5 14 20 14 30 21 9 21 21 18 19 30 6 18 24 13 Largest Group 25 | . . 2 . . 1 4 2 1 2 5 4 1 4 7 8 11 11 19 17 9 10 5 10 16 15 21 23 25 18 14 10 11 12 3 12 12 7 Highest-Rated Group 1294 | . . 41 . . 10 55 30 16 20 68 57 16 78 153 239 241 274 730 750 708 677 72 430 572 452 898 1210 1294 998 688 484 631 689 495 933 959 836 Highest-Rated Ally 343 | . . 31 . . 10 15 15 16 10 25 26 16 23 39 41 41 41 159 159 159 96 23 116 49 85 85 116 116 99 64 79 148 178 343 343 343 216 Total Orders 436 | . . . . . 2 4 . . . 10 7 5 14 39 25 30 8 3 1 2 6 5 44 30 20 51 36 4 16 6 1 . 9 2 17 22 17 STAY 188 | . . . . . 1 2 . . . 5 4 . 5 20 8 14 3 1 1 1 5 1 20 11 10 22 15 1 5 3 1 . 5 1 7 7 9 ROAM 17 | . . . . . . 1 . . . . . 3 . . 1 . . 1 . . . . 5 . . 1 2 . . . . . . . . 3 . FOLLOW 134 | . . . . . 1 1 . . . 5 3 2 6 11 6 6 1 . . 1 1 1 11 10 5 14 13 1 5 3 . . 3 1 4 12 7 GUARD 1 | . . . . . . . . . . . . . . . . . . . . . . . 1 . . . . . . . . . . . . . . AID 79 | . . . . . . . . . . . . . 1 8 4 9 2 . . . . 1 7 8 5 14 6 2 6 . . . . . 6 . . DROP 1 | . . . . . . . . . . . . . . . . . . . . . . . . . . . . . . . . . . . . . 1 EXPLORE 1 | . . . . . . . . . . . . . . . . . . . . . . . . . . . . . . . . . 1 . . . . RETURN 15 | . . . . . . . . . . . . . 2 . 6 1 2 1 . . . 2 . 1 . . . . . . . . . . . . . Ally Attacks 3367 | . . 7 . . . 9 12 19 16 18 31 11 3 128 122 90 75 80 85 33 114 24 85 194 94 176 150 170 326 167 129 90 197 47 200 243 222 Total Damage 110522 | . . 64 . . . 193 288 244 91 260 463 121 50 1847 4104 2096 1420 2024 3182 1173 4092 180 2742 4864 2647 5554 6398 6184 9405 4957 4007 2958 7544 1931 6670 10260 12509 Kills 571 | . . 3 . . . 1 4 3 . 2 4 3 . 17 24 18 12 10 13 4 21 3 22 33 19 30 30 29 52 16 25 12 24 8 32 56 41 Allies Corrupted 36 | . . 1 . . . . . . . . . . . . . 1 . . . . 1 . . 2 1 . 4 4 3 5 . 1 9 2 1 1 . Allies Melted 4 | . . . . . . . . . . . . . . 1 . . . 1 . . . . . . 1 . . . . 1 . . . . . . . Intel | -11 -10 -10 -10 -9 -8 -8 -8 -8 -8 -8 -8 -8 -7 -7 -6 -6 -6 -6 -6 -6 -6 -5 -5 -5 -5 -4 -4 -3 -3 -3 -2 -2 -2 -2 -2 -1 -1 ------- Run | Yrd Mat Min Exi Min Mat Gar Mat Gar Mat Gar Mat Gar Fac Gar Fac Gar Fac Ext Cet Arc Hub Fac Gar Fac Gar Fac Gar Res Tes Gar Res Gar Res Qua Sec Acc Com Robot Analysis Total 9 | . . . . . 3 . . . . . 2 . . . . . . 3 . . . . . . . . . . . . . . . 1 . . . Derelict Logs Recovered 3 | . . 2 . 1 . . . . . . . . . . . . . . . . . . . . . . . . . . . . . . . . . Drone Launches 34 | . . . . . . . . . . . . . 2 . 11 . 3 . . . 1 1 . 2 . . . 1 . . . . 8 3 2 . . Drone Recoveries 24 | . . . . . . . . . . . . . 2 . 10 1 2 1 . . . 2 . 2 . . . . . . . . 3 1 . . . Exploration | -11 -10 -10 -10 -9 -8 -8 -8 -8 -8 -8 -8 -8 -7 -7 -6 -6 -6 -6 -6 -6 -6 -5 -5 -5 -5 -4 -4 -3 -3 -3 -2 -2 -2 -2 -2 -1 -1 ------------- Run | Yrd Mat Min Exi Min Mat Gar Mat Gar Mat Gar Mat Gar Fac Gar Fac Gar Fac Ext Cet Arc Hub Fac Gar Fac Gar Fac Gar Res Tes Gar Res Gar Res Qua Sec Acc Com Turns Passed 62103 | 79 1344 680 391 376 2468 1394 535 745 2453 1001 2136 1442 2670 2280 2622 1609 2388 1615 380 482 2596 436 1701 3234 1663 2729 2397 1272 2352 1360 634 1655 2216 2195 1697 2663 2213 Spaces Moved 30234 | 46 701 389 281 411 1307 647 215 329 1145 478 771 736 1185 977 1200 788 1232 869 185 229 1069 179 819 1770 830 1410 1173 695 1231 709 305 809 1113 856 704 1231 1210 Core 15 | 5 . . . . . . . . . . . . . . . . . . . . . . . . . . . . . . . . . . . . 10 Treads 1375 | 41 701 389 181 . . . . . . . . . . . . . . . . . . . . . . . . . . . . . . . . . 63 Legs 5567 | . . . 100 411 1307 647 215 329 1145 478 771 164 . . . . . . . . . . . . . . . . . . . . . . . . . Wheels 23044 | . . . . . . . . . . . . 572 1185 977 1200 788 1232 869 185 229 1069 179 819 1770 830 1410 1173 695 1231 709 305 809 1113 856 704 1231 904 Hover . | . . . . . . . . . . . . . . . . . . . . . . . . . . . . . . . . . . . . . . Flight . | . . . . . . . . . . . . . . . . . . . . . . . . . . . . . . . . . . . . . . Fastest Speed 50 | 50 160 160 90 60 90 170 125 170 125 125 125 125 160 175 138 146 153 145 145 153 153 153 153 153 161 161 170 170 150 150 170 150 170 190 170 159 50 Average Speed 168 | 148 160 160 135 89 125 170 163 170 173 171 228 163 182 188 174 160 166 153 152 153 172 165 153 162 170 167 170 170 169 162 170 171 170 224 186 171 156 Slowest Speed 470 | 160 160 240 160 90 170 170 170 170 330 250 250 250 195 265 280 161 265 195 175 153 265 168 168 210 195 179 190 170 170 170 170 210 190 255 255 470 215 Overloaded Moves 81 | . . . . 5 . . 31 . 20 4 16 5 . . . . . . . . . . . . . . . . . . . . . . . . . Propulsion Burnouts . | . . . . . . . . . . . . . . . . . . . . . . . . . . . . . . . . . . . . . . Robots Hopped 1 | . . . . . . . . . . . . . . . . . . . . . . . . 1 . . . . . . . . . . . . . Cave-ins Triggered 2 | . . . . . . 1 . . . . . . . . . . . . . . . . . . . . . . . . . . . . . . 1 Microwarps 19 | . . . . . . . . . . . . . . . . . . . . . . . . . . . . . . . . . . . . . 19 Time Travels 1 | . . . . . . . . . . . . . . . . . . . . . . . . . . . . . . 1 . . . . . . . Exploration Rate (%) 63 | 5 93 97 71 94 81 58 28 39 93 67 67 77 40 87 37 78 44 82 82 94 99 5 80 51 82 44 92 30 95 72 21 91 42 79 34 31 36 Regions Visited 37 Branch Regions 11 Pre-discovered Areas 3 | . 1 1 1 . . . . . . . . . . . . . . . . . . . . . . . . . . . . . . . . . . Known Exits Taken 17 | . . . . . 1 . 1 . 1 . 1 . 1 . 1 . 1 . . . 1 1 . 1 . 1 . 1 1 . 1 . 1 . 1 1 . Unknown Exits Taken 9 | 1 1 1 1 1 . . . . . . . . . . . . . 1 1 1 . . . . . . . . . . . . . 1 . . . Scrap Searched 1 | . . . . 1 . . . . . . . . . . . . . . . . . . . . . . . . . . . . . . . . . Spaces Dug 211 | . . 10 . . 2 8 3 7 11 3 4 3 15 . 5 1 14 2 . . 2 . . 4 2 8 11 1 1 . 2 . 6 7 38 37 4 Terrain Destroyed 1169 | . 1 50 . . 17 32 16 7 28 5 33 54 22 3 63 1 43 7 . 9 25 1 . 17 12 18 19 4 4 . 9 103 154 85 208 45 74 Melee 20 | . . 2 . . 2 4 3 7 . . . . 2 . . . . . . . . . . . . . . . . . . . . . . . . Projectile 394 | . . . . . . . 7 . 28 5 33 5 20 3 24 1 23 7 . 9 25 1 . 17 12 18 19 4 4 . 2 7 17 20 30 45 8 AOE 755 | . 1 48 . . 15 28 6 . . . . 49 . . 39 . 20 . . . . . . . . . . . . . 7 96 137 65 178 . 66 Terrain Rammed . | . . . . . . . . . . . . . . . . . . . . . . . . . . . . . . . . . . . . . . Walls Destroyed . | . . . . . . . . . . . . . . . . . . . . . . . . . . . . . . . . . . . . . . Machines Disabled . | . . . . . . . . . . . . . . . . . . . . . . . . . . . . . . . . . . . . . . Actions | -11 -10 -10 -10 -9 -8 -8 -8 -8 -8 -8 -8 -8 -7 -7 -6 -6 -6 -6 -6 -6 -6 -5 -5 -5 -5 -4 -4 -3 -3 -3 -2 -2 -2 -2 -2 -1 -1 --------- Run | Yrd Mat Min Exi Min Mat Gar Mat Gar Mat Gar Mat Gar Fac Gar Fac Gar Fac Ext Cet Arc Hub Fac Gar Fac Gar Fac Gar Res Tes Gar Res Gar Res Qua Sec Acc Com Total 38610 | 54 827 430 294 418 1984 809 324 445 1510 605 1056 933 1590 1247 1588 1036 1486 1101 278 299 1655 304 1212 2050 1028 1672 1504 761 1456 858 404 1018 1347 1004 963 1664 1396 Wait 4264 | . 32 12 . 3 552 17 40 44 259 47 204 92 262 70 231 99 151 30 78 10 464 84 221 171 88 111 128 22 114 20 34 37 63 25 89 234 126 Move 29989 | 45 700 388 280 410 1306 646 215 328 1145 477 771 735 1185 976 1199 787 1231 868 184 228 1068 179 818 1768 829 1410 1172 694 1231 708 305 808 1112 855 703 1230 995 Hop 1 | . . . . . . . . . . . . . . . . . . . . . . . . 1 . . . . . . . . . . . . . Pick Up 305 | 3 12 6 1 1 9 8 2 5 9 6 5 11 10 13 7 22 9 2 3 2 4 8 18 5 15 9 22 4 6 9 1 19 8 5 6 11 9 Fast Attach 117 | 6 3 . 4 1 10 1 . . 9 . 1 . 1 1 5 1 5 3 2 1 3 . 5 4 1 2 4 . 10 1 . 8 3 2 3 7 10 Attach 177 | . . 2 1 . 5 5 4 2 3 1 2 1 6 7 12 1 10 4 1 1 5 2 5 4 3 4 7 2 5 5 4 8 12 8 11 7 17 Detach 74 | . 2 . 3 . 4 1 . . 4 . 2 . 1 1 1 2 2 2 . . . . 1 1 1 . 6 . 8 1 . 2 4 2 5 2 16 Swap 448 | . 3 2 . 1 9 11 14 8 10 5 11 9 23 25 24 12 9 16 1 3 26 12 17 18 12 14 14 9 10 12 9 15 31 8 18 15 12 Drop 193 | . 4 5 5 2 4 3 . . 5 6 3 7 5 6 8 13 2 . 4 . 2 3 17 6 12 8 17 . 13 4 1 8 6 . 1 9 4 Fire 2013 | . 49 8 . . 73 61 36 19 55 43 43 34 57 89 98 60 63 28 5 54 79 7 35 53 29 82 60 14 44 54 45 56 89 81 124 144 142 Melee 165 | . 2 5 . . 12 16 9 32 7 9 5 1 9 . . . . . . . 1 6 . . . . . . . . . . . . . . 51 Ram 8 | . . . . . . . . . . . . . . 1 . . 1 1 . . . . . . . . . . . . 1 . 4 . . . . Kick 9 | . . . . . . . 1 . 1 . 7 . . . . . . . . . . . . . . . . . . . . . . . . . . Crush 13 | . 5 2 . . . . . . . . . . . . . . . . . . . . . . . . . . . . . . . . . . 6 Escape Stasis 283 | . . . . . . 10 . 5 . . . 42 . 40 . 16 . 12 . . . . 32 . 16 . 47 8 . 24 . 30 . . . . 1 Rewire 268 | . . . . . . 30 3 2 3 . 2 1 1 3 3 2 3 135 . . 1 3 25 3 2 1 6 . 2 4 3 6 5 4 3 5 7 Trap 58 | . 15 . . . . . . . . 11 . . 30 . . . . . . . 2 . . . . . . . . . . . . . . . . Miscellaneous 225 | . . . . . . . . . . . . . . 15 . 21 . . . . . . 18 16 20 31 21 8 13 16 1 21 10 14 . . . Route ------- -11/Scrapyard -10/Materials (discovered 5 exits: [*Mat x3] / *Min x2) -10/Mines (discovered 4 exits: [*Mat x2] / *Exi / [*Sub]) -10/Exiles -9/Mines (discovered 2 exits: *Mat x2) -8/Materials (discovered 4 exits: *Fac x2 / *Sto / Gar) -8/Garrison (discovered 2 exits: *Fac / *Mat) -8/Materials (discovered 2 exits: *Fac / Gar) -8/Garrison (discovered 4 exits: *Fac x3 / *Mat) -8/Materials (discovered 5 exits: *Fac x3 / *Sto / Gar) -8/Garrison (discovered 4 exits: *Fac x3 / *Mat) -8/Materials (discovered 3 exits: *Fac / *Sto / Gar) -8/Garrison (discovered 3 exits: *Fac x3) -7/Factory (discovered 3 exits: *Fac x2 / Gar) -7/Garrison (discovered 3 exits: *Fac x3) -6/Factory (discovered 4 exits: *Fac x2 / *Ext / Gar) -6/Garrison (discovered 3 exits: *Fac x3) -6/Factory (discovered 5 exits: *Fac / *Low x2 / *Ext x2) -6/Extension (discovered 2 exits: *Fac / *Cet) -6/Cetus (discovered 2 exits: *Fac / [*Arc]) -6/Archives (discovered 3 exits: *Fac / *Hub x2) -6/Hub_04(d) (discovered 4 exits: *Fac x4) -5/Factory -5/Garrison (discovered 3 exits: *Fac x3) -5/Factory (discovered 4 exits: *Fac x2 / [*Upp] / Gar) -5/Garrison (discovered 3 exits: *Fac x3) -4/Factory (discovered 4 exits: *Res x2 / *Upp / Gar) -4/Garrison (discovered 3 exits: *Res x3) -3/Research (discovered 2 exits: *Res / *Tes) -3/Testing (discovered 2 exits: *Res / Gar) -3/Garrison (discovered 3 exits: *Res x3) -2/Research -2/Garrison (discovered 3 exits: *Res x3) -2/Research (discovered 3 exits: *Acc / *Qua x2) -2/Quarantine (discovered 2 exits: *Acc / *Sec) -2/Section 7 -1/Access -1/Command History --------- Turn | Location | Event 13 | -11/Scrapyard | Discovered new exit (range 16) 80 | -11/Scrapyard | Entered Materials 276 | -10/Materials | Discovered new exit (range 14) 308 | -10/Materials | Build established: Mutant 558 | -10/Materials | Discovered new exit (range 6) 637 | -10/Materials | Discovered new exit (range 8) 911 | -10/Materials | Central database locked down 964 | -10/Materials | Discovered new exit (range 14) 1105 | -10/Materials | Discovered new exit (range 7) 1424 | -10/Materials | Entered Mines 1448 | -10/Mines | Learned location of Zion (-6) 1479 | -10/Mines | Discovered new exit (range 5) 1496 | -10/Mines | A weapon hastily lodged in a ceiling crevice suddenly fell to the ground 1515 | -10/Mines | Discovered new exit (range 9) 1529 | -10/Mines | Met a Derelict who couldn't figure out how to use a Trap Extractor 1942 | -10/Mines | Assembled infested the area 1987 | -10/Mines | Destroyed 13 combat bots 2021 | -10/Mines | Learned 2 Materials zone layouts 2056 | -10/Mines | Discovered new exit (range 4) 2096 | -10/Mines | Deemed a non-threat by the Exiles lab entrance 2096 | -10/Mines | Discovered new exit (range 6) 2104 | -10/Mines | Entered Exiles 2143 | -10/Exiles | Met 8R-AWN 2169 | -10/Exiles | Met EX-HEX 2281 | -10/Exiles | Met EX-DEC 2329 | -10/Exiles | Met EX-BIN 2352 | -10/Exiles | Aligned with FarCom system 2353 | -10/Exiles | Given EX-Vault access code 2390 | -10/Exiles | Opened EX-Vault 2401 | -10/Exiles | Found Potential Leg 2403 | -10/Exiles | Found Potential Leg 2408 | -10/Exiles | Found Chronowheel 2426 | -10/Exiles | Warned to stay clear of 0b10 Research branches 2487 | -10/Exiles | Discovered new exit (range 10) 2495 | -10/Exiles | Stole two prototypes: Potential Leg, Chronowheel 2495 | -10/Exiles | Entered Mines 2496 | -9/Mines | Met a Derelict testing a Signal Generator 2500 | -9/Mines | Found Signal Generator 2685 | -9/Mines | Found the Drone Emporium 2687 | -9/Mines | Found Prototype Device 2687 | -9/Mines | Identified Sensor Drone Bay 2715 | -9/Mines | Discovered new exit (range 12) 2736 | -9/Mines | Discovered new exit (range 6) 2871 | -9/Mines | Entered Materials 2871 | -8/Materials | Evolved 4 slots: Utility x4 2872 | -8/Materials | Identified exit to Storage 3564 | -8/Materials | Discovered new exit (range 17) 3637 | -8/Materials | Lost 3 parts (2u1w) 4120 | -8/Materials | Discovered new exit (range 13) 4531 | -8/Materials | Repaired Hvy. Armor Plating 4593 | -8/Materials | Repaired Hvy. EM Shotgun 4632 | -8/Materials | Repaired Flak Cannon 4978 | -8/Materials | Central database locked down 5317 | -8/Materials | Identified exit to Garrison 5339 | -8/Materials | Entered Garrison 5339 | -8/Garrison | Accompanied by 1 ally 5401 | -8/Garrison | Triggered checkpoint 5462 | -8/Garrison | Triggered checkpoint 5493 | -8/Garrison | Garrison Relay disabled 5608 | -8/Garrison | P-60 Hacker assimilated allied Defender 3a 5951 | -8/Garrison | Triggered checkpoint 5959 | -8/Garrison | Triggered checkpoint 6007 | -8/Garrison | Triggered checkpoint 6010 | -8/Garrison | Triggered checkpoint 6026 | -8/Garrison | Lost 3 parts (2u1w) 6049 | -8/Garrison | Destroyed 8 combat bots 6058 | -8/Garrison | Crushed by falling debris 6213 | -8/Garrison | Discovered new exit (range 11) 6253 | -8/Garrison | Triggered checkpoint 6490 | -8/Garrison | Installed Relay Interface Framework 6591 | -8/Garrison | Triggered checkpoint 6621 | -8/Garrison | Discovered new exit (range 5) 6700 | -8/Garrison | Spotted B-75 Beast 6733 | -8/Garrison | Entered Materials 6792 | -8/Materials | Build established: Bothacker-Mutant 7039 | -8/Materials | Garrison activated, responded to threat 7209 | -8/Materials | Discovered new exit (range 3) 7219 | -8/Materials | Garrison activated, responded to threat 7266 | -8/Materials | Identified exit to Garrison 7268 | -8/Materials | Entered Garrison 7350 | -8/Garrison | Triggered checkpoint 7401 | -8/Garrison | Garrison Relay disabled 7416 | -8/Garrison | Discovered new exit (range 50) 7416 | -8/Garrison | Discovered new exit (range 73) 7416 | -8/Garrison | Discovered new exit (range 36) 7416 | -8/Garrison | Discovered new exit (range 15) 7626 | -8/Garrison | Triggered checkpoint 7630 | -8/Garrison | Core integrity fell below 50% 7771 | -8/Garrison | Expanded RIF knowledge: Watcher Feeds 8013 | -8/Garrison | Entered Materials 8013 | -8/Materials | Accompanied by 1 ally 8133 | -8/Materials | Discovered exit to Storage (range 28) 8188 | -8/Materials | Discovered new exit (range 24) 9063 | -8/Materials | Discovered new exit (range 29) 9842 | -8/Materials | Discovered new exit (range 35) 10466 | -8/Materials | Identified exit to Garrison 10466 | -8/Materials | Entered Garrison 10466 | -8/Garrison | Accompanied by 2 allies 10501 | -8/Garrison | Discovered new exit (range 68) 10501 | -8/Garrison | Discovered new exit (range 80) 10501 | -8/Garrison | Discovered new exit (range 61) 10501 | -8/Garrison | Discovered new exit (range 61) 10563 | -8/Garrison | Garrison Relay disabled 10662 | -8/Garrison | Triggered checkpoint 10777 | -8/Garrison | Triggered checkpoint 10843 | -8/Garrison | Garrison Relay disabled 10870 | -8/Garrison | Garrison Relay disabled 10956 | -8/Garrison | Rescued a captive Derelict 11042 | -8/Garrison | Triggered checkpoint 11201 | -8/Garrison | Expanded RIF knowledge: Alert ID Control 11292 | -8/Garrison | Triggered checkpoint 11357 | -8/Garrison | Expanded RIF knowledge: Program Shield 11467 | -8/Garrison | Entered Materials 11467 | -8/Materials | Accompanied by 4 allies 11640 | -8/Materials | Build established: Botlord-Mutant 11725 | -8/Materials | Discovered exit to Storage (range 31) 12068 | -8/Materials | Build established: Bothacker-Mutant 12211 | -8/Materials | Core integrity fell below 20% 13022 | -8/Materials | Discovered new exit (range 14) 13603 | -8/Materials | Identified exit to Garrison 13603 | -8/Materials | Entered Garrison 13757 | -8/Garrison | Garrison Relay disabled 13895 | -8/Garrison | Triggered checkpoint 14017 | -8/Garrison | Triggered checkpoint 14033 | -8/Garrison | Triggered checkpoint 14076 | -8/Garrison | Destroyed 18 combat bots 14086 | -8/Garrison | Build established: Botlord-Mutant 14162 | -8/Garrison | Discovered new exit (range 13) 14363 | -8/Garrison | Triggered checkpoint 14420 | -8/Garrison | Discovered new exit (range 10) 14457 | -8/Garrison | Expanded RIF knowledge: Command Fork 14491 | -8/Garrison | Triggered checkpoint 14602 | -8/Garrison | Triggered checkpoint 14644 | -8/Garrison | Garrison Relay disabled 14783 | -8/Garrison | Triggered checkpoint 14812 | -8/Garrison | Garrison Relay disabled 14840 | -8/Garrison | Garrison Relay disabled 14951 | -8/Garrison | Discovered new exit (range 15) 15045 | -8/Garrison | Entered Factory 15045 | -7/Factory | Evolved 2 slots: Utility x2 15047 | -7/Factory | FarCom data flow suspended 15135 | -7/Factory | Fabricated Cargo Storage Unit (x1) 15604 | -7/Factory | Fabricated Plasma Cutter (x3) 16596 | -7/Factory | Discovered new exit (range 8) 16624 | -7/Factory | Identified exit to Factory 17027 | -7/Factory | Discovered exit to Factory (range 29) 17712 | -7/Factory | Identified exit to Garrison 17715 | -7/Factory | Entered Garrison 17715 | -7/Garrison | Accompanied by 4 allies 17743 | -7/Garrison | Triggered checkpoint 17825 | -7/Garrison | Rescued a captive Derelict 17826 | -7/Garrison | Rescued a captive Derelict 17917 | -7/Garrison | Triggered checkpoint 17944 | -7/Garrison | Garrison Relay disabled 18131 | -7/Garrison | Triggered checkpoint 18210 | -7/Garrison | Triggered checkpoint 18258 | -7/Garrison | Triggered checkpoint 18457 | -7/Garrison | Discovered exit to Factory (range 14) 18473 | -7/Garrison | Expanded RIF knowledge: Coupler Efficiency 18574 | -7/Garrison | Garrison Relay disabled 18599 | -7/Garrison | Garrison Relay disabled 18923 | -7/Garrison | Triggered checkpoint 19026 | -7/Garrison | Garrison Relay disabled 19292 | -7/Garrison | Discovered exit to Factory (range 14) 19541 | -7/Garrison | Discovered exit to Factory (range 10) 19566 | -7/Garrison | Lost 3 allies 19665 | -7/Garrison | Triggered checkpoint 19749 | -7/Garrison | Garrison Relay disabled 19995 | -7/Garrison | Entered Factory 19995 | -6/Factory | Accompanied by 2 allies 19995 | -6/Factory | Evolved 2 slots: Propulsion x1, Weapon x1 20290 | -6/Factory | Garrison activated, responded to threat 20340 | -6/Factory | Build established: Botlord-Tank 20737 | -6/Factory | Discovered new exit (range 15) 20790 | -6/Factory | Identified exit to Factory 21045 | -6/Factory | First assault squad dispatched 21089 | -6/Factory | Repaired Reactive Plating? 21195 | -6/Factory | Fabricated G-47 Trooper (x3) 21225 | -6/Factory | Fabricated M-13 Machinist (x1) 21268 | -6/Factory | Discovered new exit (range 17) 21334 | -6/Factory | Identified exit to Extension 21648 | -6/Factory | Garrison activated, responded to threat 21807 | -6/Factory | Lost 4 allies 21826 | -6/Factory | Discovered exit to Factory (range 23) 21929 | -6/Factory | Build established: Botlord-Gunner 22350 | -6/Factory | Build established: Botlord-Tank 22482 | -6/Factory | Fabricated M-13 Machinist? 22540 | -6/Factory | Identified exit to Garrison 22617 | -6/Factory | Entered Garrison 22617 | -6/Garrison | Accompanied by 8 allies 22903 | -6/Garrison | Triggered checkpoint 22934 | -6/Garrison | H-XX Assembler disabled 23049 | -6/Garrison | Garrison Relay disabled 23240 | -6/Garrison | Triggered checkpoint 23355 | -6/Garrison | Triggered checkpoint 23380 | -6/Garrison | Triggered checkpoint 23438 | -6/Garrison | Triggered checkpoint 23585 | -6/Garrison | Triggered checkpoint 23644 | -6/Garrison | Garrison Relay disabled 23730 | -6/Garrison | Discovered new exit (range 13) 23730 | -6/Garrison | Discovered new exit (range 80) 23730 | -6/Garrison | Discovered new exit (range 50) 23817 | -6/Garrison | Triggered checkpoint 23899 | -6/Garrison | Expanded RIF knowledge: Threat Obfuscation 23933 | -6/Garrison | Garrison Relay disabled 24091 | -6/Garrison | Triggered checkpoint 24102 | -6/Garrison | Garrison Relay disabled 24226 | -6/Garrison | Entered Factory 24226 | -6/Factory | Accompanied by 11 allies 24632 | -6/Factory | Lost 3 allies 24885 | -6/Factory | Found Prototype Launcher 24885 | -6/Factory | Identified Tesla Bomb Launcher 25092 | -6/Factory | Lost 3 allies 25150 | -6/Factory | Lost 7 allies 25161 | -6/Factory | Lost 4 parts (2n1u1w) 25424 | -6/Factory | Build established: Botlord-Mutant 25686 | -6/Factory | Spotted B-75 Beast 25711 | -6/Factory | Identified exit to Lower Caves 25898 | -6/Factory | Build established: Botlord-Gunner 26338 | -6/Factory | Discovered exit to Factory (range 15) 26614 | -6/Factory | Entered Extension 26614 | -6/Extension | Accompanied by 3 allies 26860 | -6/Extension | Rescued a captive Derelict 26861 | -6/Extension | Rescued a captive Derelict 26975 | -6/Extension | Rescued a captive Derelict 26996 | -6/Extension | Rescued a captive Derelict 27007 | -6/Extension | Build established: Botlord-Tank 27079 | -6/Extension | Spotted B-75 Beast 27088 | -6/Extension | Assimilated Beast 5a with formatsys_high 27094 | -6/Extension | Spotted B-75 Beast 27103 | -6/Extension | Lost 6 allies 27105 | -6/Extension | Destroyed B-75 Beast 27294 | -6/Extension | Rescued A7 27431 | -6/Extension | Rescued a captive Derelict 27744 | -6/Extension | Rescued a captive Derelict 28073 | -6/Extension | Rescued a captive Derelict 28075 | -6/Extension | Discovered exit to Factory (range 29) 28075 | -6/Extension | Discovered new exit (range 25) 28229 | -6/Extension | Entered Cetus 28229 | -6/Cetus | Accompanied by 17 allies (A7) 28234 | -6/Cetus | Acquired a Cetus Manufacturing Module code from A7 28244 | -6/Cetus | Spotted Cetus Guard 28245 | -6/Cetus | Spotted Cetus Guard 28248 | -6/Cetus | Spotted Cetus Guard 28251 | -6/Cetus | Spotted Cetus Guard 28258 | -6/Cetus | Build established: Botlord-Skirmisher 28266 | -6/Cetus | Allies destroyed Cetus Guard 28267 | -6/Cetus | Allies destroyed Cetus Guard 28271 | -6/Cetus | Allies destroyed Cetus Guard 28272 | -6/Cetus | Allies destroyed Cetus Guard 28325 | -6/Cetus | Lost 7 allies 28371 | -6/Cetus | Started Cetus Manufacturing Module 28383 | -6/Cetus | Escorted A7 to Cetus Mainframe 28392 | -6/Cetus | Discovered new exit (range 21) 28396 | -6/Cetus | Manufactured an Enhanced Grunt 28421 | -6/Cetus | Manufactured an Enhanced Grunt 28446 | -6/Cetus | Manufactured an Enhanced Grunt 28462 | -6/Cetus | Discovered exit to Factory (range 27) 28465 | -6/Cetus | Spotted Cetus Guard 28469 | -6/Cetus | Spotted Cetus Guard 28471 | -6/Cetus | Manufactured an Enhanced Grunt 28473 | -6/Cetus | Spotted Cetus Guard 28473 | -6/Cetus | Spotted Cetus Guard 28482 | -6/Cetus | Allies destroyed Cetus Guard 28484 | -6/Cetus | Allies destroyed Cetus Guard 28492 | -6/Cetus | Allies destroyed Cetus Guard 28494 | -6/Cetus | Allies destroyed Cetus Guard 28496 | -6/Cetus | Manufactured an Enhanced Grunt 28521 | -6/Cetus | Lost 5 allies 28546 | -6/Cetus | Met Revision 17 28594 | -6/Cetus | Build established: Botlord-Tank 28609 | -6/Cetus | Entered Archives 28609 | -6/Archives | Accompanied by 9 allies (A7) 28614 | -6/Archives | Received a hacking code to weaken MAIN.C 28641 | -6/Archives | Discovered new exit (range 22) 28678 | -6/Archives | Discovered new exit (range 21) 28699 | -6/Archives | Discovered exit to Factory (range 21) 29049 | -6/Archives | Build established: Botlord-Skirmisher 29091 | -6/Archives | Entered Hub_04(d) 29091 | -6/Hub_04(d) | Accompanied by 9 allies 29105 | -6/Hub_04(d) | Discovered exit to Factory (range 32) 29453 | -6/Hub_04(d) | Discovered exit to Factory (range 22) 29559 | -6/Hub_04(d) | Build established: Botlord-Tank 29744 | -6/Hub_04(d) | Discovered exit to Factory (range 3) 29929 | -6/Hub_04(d) | Discovered exit to Factory (range 11) 31077 | -6/Hub_04(d) | Network Hub disabled 31687 | -6/Hub_04(d) | Entered Factory 31687 | -5/Factory | Accompanied by 1 ally 31687 | -5/Factory | Evolved 2 slots: Power x1, Utility x1 31832 | -5/Factory | Repaired Centrium Medium Armor Plating 32123 | -5/Factory | Identified exit to Garrison 32123 | -5/Factory | Entered Garrison 32123 | -5/Garrison | Accompanied by 4 allies 32157 | -5/Garrison | Triggered checkpoint 32194 | -5/Garrison | Garrison Relay disabled 32309 | -5/Garrison | Rewired B-86 Titan 32464 | -5/Garrison | Triggered checkpoint 32485 | -5/Garrison | Triggered checkpoint 32492 | -5/Garrison | Triggered checkpoint 32721 | -5/Garrison | Triggered checkpoint 32742 | -5/Garrison | Discovered new exit (range 13) 32982 | -5/Garrison | Found Relay Coupler [Proto] 32984 | -5/Garrison | Found Relay Coupler [Proto] 32987 | -5/Garrison | Found Relay Coupler [Proto] 32989 | -5/Garrison | Found Relay Coupler [Proto] 33125 | -5/Garrison | Triggered checkpoint 33138 | -5/Garrison | Garrison Relay disabled 33201 | -5/Garrison | Triggered checkpoint 33255 | -5/Garrison | Triggered checkpoint 33264 | -5/Garrison | Garrison Relay disabled 33375 | -5/Garrison | Discovered new exit (range 9) 33495 | -5/Garrison | Triggered checkpoint 33534 | -5/Garrison | Garrison Relay disabled 33600 | -5/Garrison | Expanded RIF knowledge: Autoassimilate 33718 | -5/Garrison | Phase Generator disabled 33793 | -5/Garrison | Discovered new exit (range 10) 33824 | -5/Garrison | Entered Factory 33824 | -5/Factory | Accompanied by 8 allies 34171 | -5/Factory | Discovered new exit (range 17) 34204 | -5/Factory | Lost 4 allies 34299 | -5/Factory | Discovered new exit (range 19) 34299 | -5/Factory | Identified exit to Factory 34762 | -5/Factory | Cargo convoy interrupted 35035 | -5/Factory | Fabricated Y-64 Sentinel? 35038 | -5/Factory | Discovered exit to Factory (range 22) 35065 | -5/Factory | Spotted B-75 Beast 35293 | -5/Factory | Fabricated M-13 Machinist? 36344 | -5/Factory | Found Prototype Processor 36344 | -5/Factory | Identified Exp. Core Analyzer 36833 | -5/Factory | Lost 3 allies 37050 | -5/Factory | Identified exit to Garrison 37058 | -5/Factory | Entered Garrison 37058 | -5/Garrison | Accompanied by 13 allies 37215 | -5/Garrison | Garrison Relay disabled 37441 | -5/Garrison | Spotted B-75 Beast 37445 | -5/Garrison | Triggered checkpoint 37467 | -5/Garrison | Assimilated Beast 6a with formatsys_high 37480 | -5/Garrison | Triggered checkpoint 37495 | -5/Garrison | Triggered checkpoint 37496 | -5/Garrison | Lost 14 allies 37498 | -5/Garrison | Triggered checkpoint 37614 | -5/Garrison | Triggered checkpoint 37698 | -5/Garrison | Triggered checkpoint 37720 | -5/Garrison | Garrison Relay disabled 37792 | -5/Garrison | Discovered exit to Factory (range 10) 37975 | -5/Garrison | Discovered exit to Factory (range 42) 37975 | -5/Garrison | Discovered exit to Factory (range 80) 37975 | -5/Garrison | Discovered exit to Factory (range 60) 38120 | -5/Garrison | Rescued a captive Derelict 38126 | -5/Garrison | Rescued a captive Derelict 38408 | -5/Garrison | Triggered checkpoint 38408 | -5/Garrison | Garrison Relay disabled 38552 | -5/Garrison | Triggered checkpoint 38605 | -5/Garrison | Garrison Relay disabled 38685 | -5/Garrison | Learned Factory security intel 38721 | -5/Garrison | Entered Factory 38721 | -4/Factory | Accompanied by 6 allies 38721 | -4/Factory | Evolved 2 slots: Utility x2 38922 | -4/Factory | Discovered new exit (range 24) 39069 | -4/Factory | Identified exit to Upper Caves 39731 | -4/Factory | Discovered new exit (range 15) 39897 | -4/Factory | Discovered new exit (range 7) 41290 | -4/Factory | Found Hvy. Reactive Plating 41436 | -4/Factory | Identified exit to Garrison 41450 | -4/Factory | Entered Garrison 41450 | -4/Garrison | Accompanied by 18 allies 41492 | -4/Garrison | Phase Generator disabled 41543 | -4/Garrison | Spotted B-86 Titan 41546 | -4/Garrison | P-70 Sage assimilated allied Engineer 7a 41550 | -4/Garrison | Assimilated Titan 7a with formatsys_high 41588 | -4/Garrison | Lost 3 allies 41786 | -4/Garrison | Triggered checkpoint 41788 | -4/Garrison | Garrison Relay disabled 41835 | -4/Garrison | Garrison Relay disabled 41845 | -4/Garrison | Garrison Relay disabled 41845 | -4/Garrison | Garrison Relay disabled 41853 | -4/Garrison | Garrison Relay disabled 42066 | -4/Garrison | Triggered checkpoint 42404 | -4/Garrison | Triggered checkpoint 42436 | -4/Garrison | Triggered checkpoint 42464 | -4/Garrison | Triggered checkpoint 42591 | -4/Garrison | Garrison Relay disabled 42594 | -4/Garrison | Lost 3 allies 42604 | -4/Garrison | Triggered checkpoint 42625 | -4/Garrison | Discovered new exit (range 12) 42950 | -4/Garrison | Triggered checkpoint 42998 | -4/Garrison | Expanded RIF knowledge: Code Merge 43023 | -4/Garrison | Garrison Relay disabled 43148 | -4/Garrison | Triggered checkpoint 43149 | -4/Garrison | Discovered new exit (range 12) 43202 | -4/Garrison | Found embedded Infiltrators 43491 | -4/Garrison | Discovered new exit (range 10) 43500 | -4/Garrison | Triggered checkpoint 43537 | -4/Garrison | Garrison Relay disabled 43594 | -4/Garrison | Spotted B-75 Beast 43601 | -4/Garrison | Allies destroyed B-75 Beast 43768 | -4/Garrison | Rewired B-86 Titan 43847 | -4/Garrison | Entered Research 43847 | -3/Research | Accompanied by 22 allies 43847 | -3/Research | Evolved 2 slots: Utility x2 44047 | -3/Research | Revision forces began assault on 0b10 44086 | -3/Research | Met up with Revision 17++ 44155 | -3/Research | Build established: Botlord-Skirmisher 44387 | -3/Research | Lost 3 allies 44547 | -3/Research | Research terminal network offline 44640 | -3/Research | Lost 4 allies 44659 | -3/Research | Discovered new exit (range 18) 44720 | -3/Research | Identified exit to Research 44956 | -3/Research | Spotted Striker 44957 | -3/Research | Spotted Striker 44961 | -3/Research | Destroyed Striker 44965 | -3/Research | Allies destroyed Striker 45002 | -3/Research | Discovered new exit (range 16) 45065 | -3/Research | Spotted Striker 45069 | -3/Research | Allies destroyed Striker 45109 | -3/Research | Identified exit to Testing 45119 | -3/Research | Entered Testing 45119 | -3/Testing | Accompanied by 17 allies 45207 | -3/Testing | Found Exp. EM Disruption Field 45360 | -3/Testing | Build established: Botlord-Tank 45427 | -3/Testing | Spotted Striker 45428 | -3/Testing | Autoassimilated Striker with RIF 45431 | -3/Testing | Spotted Striker 45432 | -3/Testing | Autoassimilated Striker with RIF 45701 | -3/Testing | Fabricated M-13 Machinist (x1) 45737 | -3/Testing | Lost 3 allies 45802 | -3/Testing | Lost 4 allies 45826 | -3/Testing | Found Prototype Ballistic Cannon 45826 | -3/Testing | Identified Omega Cannon 45942 | -3/Testing | Found Prototype Protection 46038 | -3/Testing | Found Prototype Energy Cannon 46038 | -3/Testing | Identified Imp. Potential Cannon 46740 | -3/Testing | Lost 3 allies 46882 | -3/Testing | Found Prototype Launcher 46882 | -3/Testing | Identified Z-bomb Delivery System 47009 | -3/Testing | Discovered exit to Research (range 8) 47043 | -3/Testing | Found Prototype Energy Gun 47043 | -3/Testing | Identified Hyp. EM Gauss Rifle 47114 | -3/Testing | Found Prototype Device 47114 | -3/Testing | Identified Adv. Kinecellerator 47208 | -3/Testing | Identified SHELL Armor 47261 | -3/Testing | Found System Mapper 47463 | -3/Testing | Identified exit to Garrison 47471 | -3/Testing | Entered Garrison 47471 | -3/Garrison | Accompanied by 12 allies 47519 | -3/Garrison | Triggered checkpoint 47599 | -3/Garrison | Garrison Relay disabled 47663 | -3/Garrison | Triggered checkpoint 47685 | -3/Garrison | Triggered checkpoint 47728 | -3/Garrison | Lost 3 parts (1p2u) 47743 | -3/Garrison | Lost 15 allies 47761 | -3/Garrison | Triggered checkpoint 47791 | -3/Garrison | Discovered exit to Research (range 55) 47791 | -3/Garrison | Discovered exit to Research (range 61) 47791 | -3/Garrison | Discovered exit to Research (range 27) 47877 | -3/Garrison | Triggered checkpoint 47885 | -3/Garrison | Garrison Relay disabled 47928 | -3/Garrison | Activated Chronowheel 47928 | -3/Garrison | Spacetime reconverged on an earlier point 47949 | -3/Garrison | Expanded RIF knowledge: Threat Obfuscation 48261 | -3/Garrison | Lost 3 allies 48335 | -3/Garrison | Triggered checkpoint 48357 | -3/Garrison | Rescued a captive Derelict 48370 | -3/Garrison | Garrison Relay disabled 48427 | -3/Garrison | Spotted B-86 Titan 48439 | -3/Garrison | Allies destroyed B-86 Titan 48469 | -3/Garrison | Lost 4 allies 48484 | -3/Garrison | Garrison Relay disabled 48649 | -3/Garrison | Garrison Relay disabled 48709 | -3/Garrison | Triggered checkpoint 48831 | -3/Garrison | Entered Research 48831 | -2/Research | Accompanied by 9 allies 48831 | -2/Research | Evolved 2 slots: Utility x2 49049 | -2/Research | Lost 9 allies 49129 | -2/Research | Lost 5 allies 49170 | -2/Research | Spotted B-90 Cyclops 49359 | -2/Research | Garrison activated, responded to threat 49441 | -2/Research | Cargo convoy interrupted 49441 | -2/Research | Spotted Striker 49445 | -2/Research | Spotted Striker 49446 | -2/Research | Spotted Striker 49454 | -2/Research | P-80 Master assimilated allied Enforcer 9c 49461 | -2/Research | Assimilated Striker with formatsys_high 49465 | -2/Research | Identified exit to Garrison 49465 | -2/Research | Entered Garrison 49465 | -2/Garrison | Accompanied by 2 allies 49486 | -2/Garrison | Lost 10 allies 49573 | -2/Garrison | Spotted B-90 Cyclops 49577 | -2/Garrison | Lost 3 allies 49602 | -2/Garrison | Lost 4 parts (2p1u1w) 49688 | -2/Garrison | Garrison Relay disabled 49788 | -2/Garrison | Assimilated Cyclops 9a with formatsys_high 49791 | -2/Garrison | Triggered checkpoint 49795 | -2/Garrison | Triggered checkpoint 49810 | -2/Garrison | Triggered checkpoint 49812 | -2/Garrison | Triggered checkpoint 49856 | -2/Garrison | Lost 3 allies 50002 | -2/Garrison | Triggered checkpoint 50051 | -2/Garrison | Garrison Relay disabled 50237 | -2/Garrison | Triggered checkpoint 50264 | -2/Garrison | Expanded RIF knowledge: Threat Obfuscation 50322 | -2/Garrison | Garrison Relay disabled 50351 | -2/Garrison | Triggered checkpoint 50400 | -2/Garrison | Discovered new exit (range 6) 50459 | -2/Garrison | Discovered new exit (range 14) 50692 | -2/Garrison | Found embedded Infiltrators 50695 | -2/Garrison | Triggered checkpoint 50717 | -2/Garrison | Garrison Relay disabled 50770 | -2/Garrison | Phase Generator disabled 50809 | -2/Garrison | Discovered new exit (range 9) 50926 | -2/Garrison | Spotted B-90 Cyclops 50929 | -2/Garrison | Garrison Relay disabled 50942 | -2/Garrison | Allies destroyed B-90 Cyclops 51120 | -2/Garrison | Entered Research 51120 | -2/Research | Accompanied by 11 allies 51253 | -2/Research | Fabricated Exp. Targeting Computer? 51320 | -2/Research | Lost 8 allies 51628 | -2/Research | Build established: Botlord-Skirmisher 51768 | -2/Research | System corruption reached 10% 51786 | -2/Research | Lost 5 allies 52127 | -2/Research | Spotted B-90 Cyclops 52158 | -2/Research | Destroyed B-90 Cyclops 52205 | -2/Research | Lost 5 allies 52366 | -2/Research | Discovered new exit (range 17) 52423 | -2/Research | Identified exit to Access 52573 | -2/Research | Garrison activated, responded to threat 52690 | -2/Research | Destroyed 7 combat bots 52696 | -2/Research | Lost 9 allies 52958 | -2/Research | Identified exit to Quarantine 53036 | -2/Research | Spotted B-90 Cyclops 53051 | -2/Research | Allies destroyed B-90 Cyclops 53101 | -2/Research | Garrison activated, responded to threat 53166 | -2/Research | Lost 4 allies 53336 | -2/Research | Entered Quarantine 53349 | -2/Quarantine | Lost 4 allies 53360 | -2/Quarantine | Found Phase Armor 53560 | -2/Quarantine | Found Core Stripper 53677 | -2/Quarantine | Build established: Botlord-Gunner 53924 | -2/Quarantine | Cryocooling Duct disabled 53939 | -2/Quarantine | Ambient heat levels rising (+20) 53939 | -2/Quarantine | Non-combat units ordered to evacuate 54159 | -2/Quarantine | Core integrity fell below 50% 54393 | -2/Quarantine | Found Core Reset Matrix 54492 | -2/Quarantine | Discovered exit to Access (range 33) 54558 | -2/Quarantine | Spotted Alpha 7 54574 | -2/Quarantine | Assimilated Alpha 7 with formatsys_high 54638 | -2/Quarantine | Found Alien Launcher 55185 | -2/Quarantine | Spotted Fortress 55190 | -2/Quarantine | Assimilated Fortress with formatsys_high 55510 | -2/Quarantine | Discovered new exit (range 10) 55531 | -2/Quarantine | Entered Section 7 55531 | -2/Section 7 | Accompanied by 2 allies 55556 | -2/Section 7 | Found Alien Artifact 55556 | -2/Section 7 | Identified Integrated Mediator 55556 | -2/Section 7 | Installed Integrated Mediator, increased core attachment efficiency 56013 | -2/Section 7 | Spotted B-90 Cyclops 56310 | -2/Section 7 | Discovered exit to Access (range 15) 56335 | -2/Section 7 | Lost 3 allies 56482 | -2/Section 7 | Found Alien Artifact 56686 | -2/Section 7 | Spotted Alpha 7 56693 | -2/Section 7 | Spotted S7 Guard 56709 | -2/Section 7 | Destroyed S7 Guard 56781 | -2/Section 7 | Lost 11 allies 56803 | -2/Section 7 | Lost 4 parts (2n1u1w) 56830 | -2/Section 7 | System corruption reached 30% 57115 | -2/Section 7 | Build established: Botlord-Mutant 57228 | -2/Section 7 | Entered Access 57228 | -1/Access | Accompanied by 3 allies 57228 | -1/Access | Evolved 2 slots: Propulsion x1, Utility x1 57709 | -1/Access | Lost 3 allies 58022 | -1/Access | Garrison activated, responded to threat 58072 | -1/Access | Lost 5 allies 58317 | -1/Access | Build established: Botlord-Gunner 58424 | -1/Access | Lost 3 allies 59014 | -1/Access | Lost 3 allies 59274 | -1/Access | Build established: Botlord-Tank 59611 | -1/Access | Identified exit to Command 59714 | -1/Access | Spotted B-99 Colossus 59891 | -1/Access | Entered Command 60044 | -1/Command | Crushed by falling debris 60045 | -1/Command | System corruption reached 10% 60075 | -1/Command | Lost 3 parts (1p1u1w) 60258 | -1/Command | Identified Microwarp Drive 60272 | -1/Command | Spotted M Guard 60272 | -1/Command | Spotted M Guard 60272 | -1/Command | Spotted Combat Programmer 60272 | -1/Command | Spotted Combat Programmer 60273 | -1/Command | Autoassimilated M Guard with RIF 60273 | -1/Command | Autoassimilated M Guard with RIF 60277 | -1/Command | Assimilated Combat Programmer with formatsys_high 60277 | -1/Command | Assimilated Combat Programmer with formatsys_high 60815 | -1/Command | Build established: Botlord-Mutant 61282 | -1/Command | Build established: Botlord-Tank 61723 | -1/Command | Met MAIN.C 61725 | -1/Command | 0b10 Conduit disabled 61756 | -1/Command | Hacked MAIN.C using A7's code 61775 | -1/Command | Lost 3 allies 61779 | -1/Command | Allies destroyed MAIN.C Shell 61781 | -1/Command | MAIN.C activated Command garrisons 61917 | -1/Command | Core integrity fell below 50% 61952 | -1/Command | Identified Sigix Terminator 61983 | -1/Command | Found Vortex Chain Reactor 61993 | -1/Command | Lost 9 parts (1p1n4u3w) 61998 | -1/Command | Found Hvy. Regenerative Plating 62030 | -1/Command | All MAIN.C guards destroyed 62031 | -1/Command | Core integrity fell below 20% 62104 | -1/Command | Destroyed by S-43 Plague with Heavy Machine Gun Last Messages --------------- 62087_ Penetrated by Slug. 62087_ Microwarped (distance 2). 62087_ Relay Coupler [Hunter] destroyed. 62088_ Penetrated by Slug. 62090_ Slug penetrates Wall. 62090_ Penetrated by Slug. 62090_ MAIN.C reaction time slowed by virus. 62091_ System corrupted: Matter fused (-7). 62091_ Penetrated by Slug. 62091_ Hvy. Regenerative Plating destroyed. 62091_ Penetrated by Slug. 62091_ Vortex Chain Reactor destroyed. 62092_ Penetrated by Slug. 62097_ Slug penetrates Wall. 62097_ Microwarp Drive destroyed. 62097_ Slug penetrates Wall. 62098_ Penetrated by Slug. 62101_ Slug penetrates Wall. 62102_ Penetrated by Slug. 62102_ Slug penetrates Wall. Map ----- +----------------------------------------------------+ | ???????????????????????????????????????#"" | | ???????????????????????????????????????#"" | | ???????????????????????????????????????#"T | | ???????????????????????????????????????#"" | | ???????????????????????????????????????#"" | | ???????????????????????????????????????### | | ?????????????????????????????????????????# | | ?????????????????????????????????????????# | | ??????????????????????????????????######?## ##### | | ??????????????????????????????????# #?# #???? | | ??????????????????????????????????# #?# #???? | | ??????????????????????????######### #?# #???? | | ??????????????????????????# # ### ###?? | | ????????????????########??# # # #?? | | ????????????????# ?# # [ # #?? | | ????????????????# ?# # # #?? | | ????????????????? ?# # # #?? | | ?????????????????? ?# # # #?? | | ??????????????????? ?# # # #?? | | ????????????????????? ?? # #" #??? | | ?????????????????????? ???? ?? ## #??? | | ????????????????????####;######+######+#""H % #??? | | ????????????????????# #??? | | ????????????????????# ss #??? | | ????????????????????# s #??? | | ????????????????????# @ h #??? | | ????????????????????# ######+####/#"########??? | | ????????????????????# ?# # #?????? | | ????????????????????# ??# # #?????? | | ????????????????????# ??# #= ! #?????? | | ????????????????????# ???# + #?????? | | ????????????????????# ???# # !! #?????? | | ????????????????????# ????+ # !! #?????? | | ????????????????????##????######### ! #?????? | | ??????????????????????????????????# #?????? | | ??????????????????????????????????# #?????? | | ??????????????????????????????????########+#?????? | | ?????????????????????????????????????????# #?????? | | ?????????????????????????????????????????# #?????? | | ?????????????????????????????????????????# #?????? | | ?????????????????????????????????????????# #?????? | | ?????????????????????????????????????????# ####### | | ?????????????????????????????????????????# | | ?????????????????????????????????????????+ | | ?????????????????????????????????????????# | | ?????????????????????????????????????????######### | | ?????????????????????????????????????????????????? | | ?????????????????????????????????????????????????? | | ?????????????????????????????????????????????????? | | ?????????????????????????????????????????????????? | +----------------------------------------------------+ Best States ------------- Heat Dissipation 83 Coolant Potential 100 Energy Generation 61 Energy Capacity 1075 Matter Stores 300 Matter Capacity 450 Sight Range 22 Terrain Scan Range 20 Terrain Scan Density 210 Jamming Range 12 Power Amplification 40 Corruption Containment 8 Armor Coverage 975 Resistance: KI 20 Resistance: EM 75 Weapon Shielding 66 Point Defense Rating 240 Weapon Cycling 15 Melee Speed Boost 20 Evasion (%) 57 Targeting Accuracy 12 Melee Accuracy 6 Recoil Reduction 3 Offensive Hacking 20 Defensive Hacking 12 Relay Coupler Types 7 Relay Coupler Value 338 Authchip Count 1 Item Schematics ----------------- Cargo Storage Unit | -10/Materials | Hacked Plasma Cutter | -8/Materials | Hacked Hvy. Armor Plating | -8/Materials | Scanalyzed Assault Cannon | -8/Materials | Scanalyzed Cld. Particle Cannon | -8/Materials | Scanalyzed Imp. Weapon Shielding | -8/Materials | Scanalyzed Quantum Capacitor | -5/Factory | Hacked Electron Diverter | -3/Testing | Archive Hvy. Proton Missile Launcher | -3/Testing | Archive Cld. Impulse Thruster | -3/Testing | Archive Hellfire Missile Launcher | -3/Testing | Archive Adv. Plasma Rifle | -3/Testing | Archive Adv. Matter Compressor | -3/Testing | Archive Exp. Thermal Shield | -3/Testing | Archive Stealth Drone Bay | -3/Testing | Archive Exp. Field Recycling Unit | -3/Testing | Archive Centrium Light Armor Plating | -3/Testing | Archive Hvy. Regenerative Plating | -3/Testing | Hacked Lgt. Regenerative Plating | -3/Testing | Hacked Cld. Field Propulsion Drive | -3/Testing | Archive Exp. Coolant Injector | -3/Testing | Archive Hvy. Wave Gun | -3/Testing | Archive Tiamat Missile Launcher | -3/Testing | Archive Imp. Lightning Gun | -3/Testing | Archive Lgt. Antimatter Cannon | -3/Testing | Archive Exp. Targeting Computer | -3/Testing | Archive Lgt. Neutrino Core | -3/Testing | Archive Shock Maul | -3/Testing | Archive Gravity Neutralizer | -3/Testing | Archive Com. Particle Reactor | -2/Quarantine | Archive Molecular Scythe | -2/Quarantine | Archive Exp. System Shield | -2/Quarantine | Archive Hvy. Hardcell Cannon | -2/Quarantine | Archive Exp. Reaction Control System | -2/Quarantine | Archive Robot Schematics ------------------ M-13 Machinist | -10/Mines | Hacked C-55 Analyst | -3/Testing | Archive O-32 Director | -3/Testing | Archive A-27 Freighter | -3/Testing | Archive A-02 Transporter | -3/Testing | Archive A-15 Conveyor | -3/Testing | Archive T-07 Excavator | -2/Quarantine | Archive C-65 Expert | -2/Quarantine | Archive Fabricated ------------ Cargo Storage Unit | x1 | -7/Factory Plasma Cutter | x3 | -7/Factory G-47 Trooper | x3 | -6/Factory | Preloaded M-13 Machinist | x1 | -6/Factory | Authchip M-13 Machinist | x1 | -6/Factory Y-64 Sentinel | x2 | -5/Factory | Preloaded M-13 Machinist | x1 | -5/Factory M-13 Machinist | x1 | -3/Testing Exp. Targeting Computer | x1 | -2/Research Alien Tech Used ----------------- Integrated Mediator Core Stripper Phase Armor Microwarp Drive Sigix Terminator Achievements -------------- Fearless Challenges ------------ None Game ------ Seed HelicalLongswordStorm Manual? 0 Play Time 08:55:13 Cumulative 378.0 hours Start 2024.05.17 @ 19:42:34 End 2024.05.21 @ 14:52:41 Sessions 27 Manual Loads 0 Difficulty Rogue Special Mode None Game No. 239 Rogue 239 Adventurer 0 Explorer 0 Win Type - Total 24 Types 16/2/3/1/1/0/0/1/0 Lore% 85 Gallery% 87 Achievement% 80 Wizard Run 0 Options --------- Layout 0 ASCII 0 Keyboard 1 Movement Numpad Keybinds 0 Fullscreen 2 Font 18/SmallcapsGlow Map View 76x50 Zoom Use 0% Tactical HUD 1 Map Filters NONE Filters NONE Steam 1 RUN: 34e1456a-4e65-470e-82ab-0a8dece49c0e